Cogmind - Beta 10.1 @@@ ROGUE MODE // 2021.07.11 @ 06:38:31 // Winter2019/RPGLIKE Player: Farfid Result: Escaped singularity! Performance ------------- Evolutions (9) 4500 Regions Visited (40) 8000 Robots Destroyed (654) 3270 Value Destroyed (34619) 34619 Prototype IDs (158) 3160 Alien Tech Used (5) 1000 Bonus (70722) 70722 TOTAL SCORE: 125271 Bonus ------- Triggered High Security 500 High Alert Combat Kills 12258 Follower Combat Kills 2938 Entered Garrisons 800 Used RIF Installer 2000 Met Data Miner 300 Met Imprinter 300 Destroyed Z-Imprinter 1000 Met Zhirov 300 Met Warlord at Base 500 MAIN.C Attacked Warlord 500 Warlord Defense Kill 4666 Met Warlord at Research 2000 Invited to Help at Command 2000 Destroyed MAIN.C Guards 500 Met MAIN.C 5000 Destroyed MAIN.C Shell 5000 Destroyed MAIN.C 10000 Met Warlord at Command 2000 Met Architect 300 Destroyed A8 300 Destroyed A6 400 Destroyed A5 500 Destroyed Architect 15000 Win 3000 Friendly Fire -1340 Cogmind --------- Core Integrity 1089/2000 Matter 290/300 Energy 692/700 System Corruption 0% Temperature Cool (8) Movement Flying (23) Location Near Former Tau Ceti IV Parts ------- > --- POWER (2) -------- Vortex Chain Reactor > --- PROPULSION (5) --- Impulse Thruster Array Cooled Q-thruster Cooled Q-thruster Cooled Q-thruster > --- UTILITY (13) ----- Experimental Signal Interpreter Experimental Terrain Scanner Advanced Melee Analysis Suite Experimental Target Analyzer Advanced Core Analyzer Experimental Armor Integrity Analyzer Nanoactuators Advanced Actuator Array Force Booster Advanced Reaction Control System Centrium Light Armor Plating Advanced Powered Armor > --- WEAPON (4) ------- Nanosword Nanosword Nanosword Enhanced Force Lance > --- INVENTORY (6) ---- Protomatter-74 Zero-point Reactor System Purifier Peak State ------------ > --- POWER ------------ Vortex Chain Reactor > --- PROPULSION ------- Impulse Thruster Array Cooled Q-thruster Cooled Q-thruster Cooled Q-thruster > --- UTILITY ---------- Desublimator Experimental Signal Interpreter Experimental Terrain Scanner Advanced Melee Analysis Suite Experimental Target Analyzer Advanced Core Analyzer Experimental Armor Integrity Analyzer Nanoactuators Advanced Actuator Array Advanced Reaction Control System Experimental Phase Shifter Centrium Light Armor Plating Advanced Powered Armor > --- WEAPON ----------- Nanosword Nanosword Nanosword Enhanced Force Lance > --- INVENTORY -------- Protomatter Protomatter Protomatter Protomatter Protomatter System Purifier [Rating: 209] Favorites ----------- Power Vortex Chain Reactor Engine Heavy Deuterium Engine Power Core Enhanced Nuclear Core Reactor Vortex Chain Reactor Propulsion Improved Cesium-ion Thruster Wheel Compact Wheel Hover Unit Hover Unit Flight Unit Improved Cesium-ion Thruster Utility Advanced Reaction Control System Device Advanced Reaction Control System Storage Experimental Energy Well Processor Experimental Signal Interpreter Hackware Deep Network Scanner Protection Advanced Powered Armor Weapon Vibroblade Energy Gun Improved EM Shotgun Energy Cannon Advanced Beam Cannon Ballistic Gun Light Assault Rifle Special Weapon Advanced Remote Datajack Impact Weapon Powered Hammer Slashing Weapon Vibroblade Piercing Weapon Plasma Lance Build | -11 -10 -10 -9 -9 -8 -7 -7 -7 -7 -7 -7 -7 -6 -6 -6 -6 -6 -5 -5 -5 -5 -5 -4 -4 -4 -4 -4 -3 -3 -3 -3 -2 -2 -2 -2 -1 -1 -1 -1 -1 ------- Run | Scr Mat Min Mat Sto Mat Fac Was Fac Low Low Zio Dee Pro Fac Low Low Dat Pro Fac Upp Upp Zhi Pro Fac Upp Upp War Pro Res Qua Gar Res Gar Res Gar Acc Gar Acc Com Ac0 Slots Evolved 19 | 2 . . 1 3 3 1 . 3 . . . 1 1 . . . . . . . . . 1 . . 1 . . . . . 1 . . . . 1 . . . Power 1 | . . . . . 1 . . . . . . . . . . . . . . . . . . . . . . . . . . . . . . . . . . . Propulsion 3 | 1 . . 1 1 . . . . . . . . . . . . . . . . . . . . . . . . . . . . . . . . . . . . Utility 12 | . . . . 1 2 1 . 2 . . . 1 1 . . . . . . . . . 1 . . 1 . . . . . 1 . . . . 1 . . . Weapon 3 | 1 . . . 1 . . . 1 . . . . . . . . . . . . . . . . . . . . . . . . . . . . . . . . Parts Attached 219 | 3 4 2 8 12 9 8 2 7 . 1 . 7 2 11 2 . . . 12 . 1 9 9 18 2 1 13 1 5 7 . 18 . 5 2 . 1 . 24 13 Power 16 | . . 1 . 2 1 2 . 1 . . . . . . . . . . 1 . 1 1 1 . . . 1 . . . . 2 . . . . . . . 2 Engine 5 | . . 1 . 2 1 . . 1 . . . . . . . . . . . . . . . . . . . . . . . . . . . . . . . . Core 3 | . . . . . . 2 . . . . . . . . . . . . . . 1 . . . . . . . . . . . . . . . . . . . Reactor 8 | . . . . . . . . . . . . . . . . . . . 1 . . 1 1 . . . 1 . . . . 2 . . . . . . . 2 Propulsion 31 | 1 2 . 6 1 2 4 . . . . . . . . 1 . . . 1 . . . . 2 . . 2 . . 1 . 2 . 5 . . . . 1 . Treads . | . . . . . . . . . . . . . . . . . . . . . . . . . . . . . . . . . . . . . . . . . Leg . | . . . . . . . . . . . . . . . . . . . . . . . . . . . . . . . . . . . . . . . . . Wheel 1 | 1 . . . . . . . . . . . . . . . . . . . . . . . . . . . . . . . . . . . . . . . . Hover 2 | . 2 . . . . . . . . . . . . . . . . . . . . . . . . . . . . . . . . . . . . . . . Flight 28 | . . . 6 1 2 4 . . . . . . . . 1 . . . 1 . . . . 2 . . 2 . . 1 . 2 . 5 . . . . 1 . Utility 121 | . . 1 . 1 3 1 2 4 . 1 . 7 2 9 1 . . . 3 . . 8 8 11 2 1 9 . 5 1 . 13 . . 2 . 1 . 17 8 Device 77 | . . . . 1 2 1 1 2 . . . 3 . 2 1 . . . 1 . . 4 6 10 1 1 5 . 5 . . 13 . . 2 . 1 . 9 6 Storage 4 | . . . . . . . . . . . . 1 . . . . . . . . . . . 1 . . . . . . . . . . . . . . 2 . Processor 12 | . . . . . . . 1 1 . 1 . . . 4 . . . . 1 . . 1 . . . . 1 . . . . . . . . . . . 2 . Hackware 10 | . . 1 . . 1 . . . . . . . 1 1 . . . . 1 . . 3 . . . . . . . . . . . . . . . . 2 . Protection 18 | . . . . . . . . 1 . . . 3 1 2 . . . . . . . . 2 . 1 . 3 . . 1 . . . . . . . . 2 2 Artifact . | . . . . . . . . . . . . . . . . . . . . . . . . . . . . . . . . . . . . . . . . . Weapon 51 | 2 2 . 2 8 3 1 . 2 . . . . . 2 . . . . 7 . . . . 5 . . 1 1 . 5 . 1 . . . . . . 6 3 Energy Gun 4 | . 2 . . 2 . . . . . . . . . . . . . . . . . . . . . . . . . . . . . . . . . . . . Energy Cannon 8 | . . . 1 5 . . . . . . . . . . . . . . . . . . . . . . . . . 1 . . . . . . . . 1 . Ballistic Gun 4 | 2 . . 1 1 . . . . . . . . . . . . . . . . . . . . . . . . . . . . . . . . . . . . Ballistic Cannon . | . . . . . . . . . . . . . . . . . . . . . . . . . . . . . . . . . . . . . . . . . Launcher . | . . . . . . . . . . . . . . . . . . . . . . . . . . . . . . . . . . . . . . . . . Special Weapon 2 | . . . . . . . . . . . . . . . . . . . . . . . . . . . . . . . . . . . . . . . 2 . Impact Weapon 4 | . . . . . 3 . . . . . . . . . . . . . 1 . . . . . . . . . . . . . . . . . . . . . Slashing Weapon 22 | . . . . . . 1 . 2 . . . . . 2 . . . . 5 . . . . 5 . . . . . 1 . 1 . . . . . . 3 2 Piercing Weapon 7 | . . . . . . . . . . . . . . . . . . . 1 . . . . . . . 1 1 . 3 . . . . . . . . . 1 Special Melee Weapon . | . . . . . . . . . . . . . . . . . . . . . . . . . . . . . . . . . . . . . . . . . Unidentified Prototypes 61 | . . . 1 4 1 2 . 1 . . . 4 . 2 1 . . . 3 . . 6 . 5 . . 8 . 1 1 . 8 . 2 . . . . 5 6 Parts Lost 3 | . . . . . . 1 . 1 . . . . . . . . . . . . . . . . . . . . . . . . . . . . . . . 1 Power 1 | . . . . . . 1 . . . . . . . . . . . . . . . . . . . . . . . . . . . . . . . . . . Propulsion . | . . . . . . . . . . . . . . . . . . . . . . . . . . . . . . . . . . . . . . . . . Utility 2 | . . . . . . . . 1 . . . . . . . . . . . . . . . . . . . . . . . . . . . . . . . 1 Weapon . | . . . . . . . . . . . . . . . . . . . . . . . . . . . . . . . . . . . . . . . . . Highest Loss Streak 1 | . . . . . . 1 . 1 . . . . . . . . . . . . . . . . . . . . . . . . . . . . . . . 1 Average Slot Usage (%) 91 | . 55 74 100 99 100 99 100 92 82 85 88 87 88 93 94 95 95 95 96 100 100 99 100 96 95 95 89 86 85 86 86 85 86 89 91 . 91 91 90 90 Engine 2 | . . 4 14 11 13 . . 1 5 5 5 5 5 5 5 5 5 5 5 5 . . . . . . . . . . . . . . . . . . . . Core 2 | . . . . . . 14 14 11 5 5 5 5 5 5 5 5 5 5 . . 4 5 4 4 4 4 . . . . . . . . . . . . . . Reactor 2 | . . . . . . . . . . . . . . . . . . . 4 5 5 5 4 4 4 4 4 4 4 4 4 4 4 4 4 . 4 4 4 4 Flight 20 | . . . 42 37 35 29 28 25 23 23 23 22 21 21 22 25 25 25 25 25 25 25 24 19 19 18 16 13 13 13 13 13 13 15 17 . 16 16 16 16 Device 22 | . . . . 6 8 17 14 18 23 23 23 22 21 21 20 20 20 20 19 20 20 20 25 27 28 30 26 22 21 22 22 24 26 26 26 . 28 29 25 24 Processor 12 | . . . . . . . 7 11 11 14 17 16 15 18 20 20 20 20 17 15 15 13 9 9 9 9 12 13 13 13 13 13 13 13 13 . 12 12 16 20 Hackware 6 | . . 2 14 11 13 14 14 3 . . . . . 5 5 5 5 5 7 10 10 10 9 9 9 9 9 9 9 9 9 8 8 8 8 . 8 8 6 . Protection 1 | . . . . . . . . 2 . . . 1 5 1 . . . . . . . . . . . . 1 4 4 4 4 4 4 4 4 . 4 4 4 7 Energy Gun 1 | . 14 16 9 15 16 . . . . . . . . . . . . . . . . . . . . . . . . . . . . . . . . . . . Slashing Weapon 11 | . . . . . . 4 7 8 11 11 11 11 10 14 15 15 15 15 12 20 20 20 19 18 19 18 17 9 9 9 9 8 8 8 8 . 8 8 7 11 Piercing Weapon 3 | . . . . . . . . . . . . . . . . . . . 3 . . . . . . . . 9 9 9 9 8 8 8 8 . 8 8 8 4 Naked Turns . | . . . . . . . . . . . . . . . . . . . . . . . . . . . . . . . . . . . . . . . . . Heaviest Build 86 | 2 4 7 9 24 24 29 30 42 41 41 41 42 42 43 42 42 42 42 47 47 47 52 55 66 58 62 80 79 78 77 77 77 77 77 80 77 82 82 86 82 Greatest Support 86 | 21 17 17 23 34 34 42 42 42 42 42 42 42 42 47 55 55 55 55 56 56 56 56 56 67 67 67 80 80 80 80 77 77 77 86 84 84 84 84 84 84 Greatest Overweight (x) 1 | . . . . . . . . . . . . . . . . . . . . . 1 . . 1 . . . . . . 1 1 1 1 . . . . 1 . Average Overweight (x) . | . . . . . . . . . . . . . . . . . . . . . . . . . . . . . . . . . . . . . . . . . Largest Inventory Capacity 6 | 1 1 1 1 2 2 3 3 3 3 3 3 3 3 3 3 3 3 3 4 4 4 4 4 4 4 4 4 4 4 5 5 5 5 5 5 5 5 6 6 6 Average Capacity 3 | 1 1 1 1 1 2 2 3 3 3 3 3 3 3 3 3 3 3 3 3 4 4 4 4 4 4 4 4 4 4 4 5 5 5 5 5 5 5 5 6 6 Most Carried 6 | . . 1 1 2 2 3 3 3 3 3 1 3 3 3 3 3 3 3 4 4 4 4 4 4 4 4 4 4 4 5 5 5 5 5 5 5 5 6 6 6 Average Carried 3 | . . . . 1 2 2 2 2 3 2 1 2 2 2 2 3 3 3 2 4 4 3 3 4 4 3 3 4 4 4 5 4 4 5 5 5 4 5 5 3 Final Capacity 6 | 1 1 1 1 2 2 3 3 3 3 3 3 3 3 3 3 3 3 3 4 4 4 4 4 4 4 4 4 4 4 5 5 5 5 5 5 5 5 6 6 6 Final Carried 6 | . . 1 . 2 2 3 3 3 3 1 1 3 1 3 3 3 3 3 4 4 4 3 4 4 4 4 4 4 4 5 5 5 5 5 5 5 5 6 5 3 Class Distribution -------------------- 49% | Wizard-Scout 18% | Hacker-Scout 12% | Hacker-Sprinter 5% | Commander-Sprinter 4% | Commander-Scout 4% | Scout Dominant Class ---------------- Mutant | -10/Materials Mutant | -10/Mines Hacker-Sprinter | -9/Materials Hacker-Sprinter | -9/Storage Hacker-Sprinter | -8/Materials Hacker-Sprinter | -7/Factory Hacker-Sprinter | -7/Waste Commander-Sprinter | -7/Factory Commander-Sprinter | -7/Lower Caves Commander-Scout | -7/Lower Caves Commander-Scout | -7/Zion Scout | -7/Deep Caves Scout | -6/Proximity Caves Hacker-Sprinter | -6/Factory Hacker-Sprinter | -6/Lower Caves Hacker-Scout | -6/Lower Caves Hacker-Scout | -6/Data Miner Hacker-Scout | -5/Proximity Caves Hacker-Scout | -5/Factory Hacker-Scout | -5/Upper Caves Hacker-Scout | -5/Upper Caves Hacker-Scout | -5/Zhirov Wizard-Scout | -4/Proximity Caves Wizard-Scout | -4/Factory Wizard-Scout | -4/Upper Caves Wizard-Scout | -4/Upper Caves Wizard-Scout | -4/Warlord Wizard-Scout | -3/Proximity Caves Wizard-Scout | -3/Research Wizard-Scout | -3/Quarantine Wizard-Scout | -3/Garrison Wizard-Scout | -2/Research Wizard-Scout | -2/Garrison Wizard-Scout | -2/Research Wizard-Scout | -2/Garrison Wizard-Scout | -1/Access Wizard-Scout | -1/Garrison Wizard-Scout | -1/Access Wizard-Scout | -1/Command Hacker-Scout | -1/Access_0 Resources | -11 -10 -10 -9 -9 -8 -7 -7 -7 -7 -7 -7 -7 -6 -6 -6 -6 -6 -5 -5 -5 -5 -5 -4 -4 -4 -4 -4 -3 -3 -3 -3 -2 -2 -2 -2 -1 -1 -1 -1 -1 ----------- Run | Scr Mat Min Mat Sto Mat Fac Was Fac Low Low Zio Dee Pro Fac Low Low Dat Pro Fac Upp Upp Zhi Pro Fac Upp Upp War Pro Res Qua Gar Res Gar Res Gar Acc Gar Acc Com Ac0 Matter Collected 2738 | 230 54 25 101 142 90 90 20 60 10 10 . 60 20 120 30 . . . 120 . 10 100 90 198 36 45 140 10 50 70 . 232 24 50 20 . 10 . 326 145 Remotely . | . . . . . . . . . . . . . . . . . . . . . . . . . . . . . . . . . . . . . . . . . Salvage Created 34389 | . 125 76 407 1157 706 142 . 766 540 688 . 140 374 1985 376 350 . 850 1157 555 858 136 992 3351 1083 1318 2204 647 959 184 799 1593 546 749 304 . 1699 684 4247 1642 Parts 1680 | . 2 1 15 61 53 6 . 47 23 28 . 11 29 80 17 25 . 52 43 35 40 8 60 154 59 52 106 38 35 22 44 76 45 29 14 . 81 52 159 78 Haulers Intercepted 47 | . . . 3 6 4 3 . 6 . . . . . 6 . . . . 6 . . . . 7 . . . . 1 . . 1 . 3 . . . 1 . . Recyclers Shooed 3 | . . . . 2 . . . . . . . . . . . . . . 1 . . . . . . . . . . . . . . . . . . . . . Parts Field Recycled . | . . . . . . . . . . . . . . . . . . . . . . . . . . . . . . . . . . . . . . . . . Retrieved Matter . | . . . . . . . . . . . . . . . . . . . . . . . . . . . . . . . . . . . . . . . . . Parts Self-Destructed 637 | . . . . . . . . . 28 29 . . 29 . 16 27 . 74 . 34 45 . 68 . 59 49 141 38 . . . . . . . . . . . . Prevented 12 | . . . . . . . . . . . . . . . . 2 . . . . . . . . . . 10 . . . . . . . . . . . . . Kills | -11 -10 -10 -9 -9 -8 -7 -7 -7 -7 -7 -7 -7 -6 -6 -6 -6 -6 -5 -5 -5 -5 -5 -4 -4 -4 -4 -4 -3 -3 -3 -3 -2 -2 -2 -2 -1 -1 -1 -1 -1 ------- Run | Scr Mat Min Mat Sto Mat Fac Was Fac Low Low Zio Dee Pro Fac Low Low Dat Pro Fac Upp Upp Zhi Pro Fac Upp Upp War Pro Res Qua Gar Res Gar Res Gar Acc Gar Acc Com Ac0 Combat Hostiles Destroyed 531 | . 2 . 4 14 18 1 . 9 12 12 . 6 11 25 5 11 . 24 13 15 15 . 25 40 15 18 34 14 8 4 15 18 15 6 3 . 30 14 61 14 Melee 493 | . . . . . . 1 . 9 12 12 . 6 11 25 5 11 . 24 13 15 15 . 25 40 15 18 34 14 8 4 15 18 15 6 3 . 30 14 61 14 Guns 26 | . 2 . 1 9 14 . . . . . . . . . . . . . . . . . . . . . . . . . . . . . . . . . . . Cannons 8 | . . . 3 5 . . . . . . . . . . . . . . . . . . . . . . . . . . . . . . . . . . . . AOE 2 | . . . . . 2 . . . . . . . . . . . . . . . . . . . . . . . . . . . . . . . . . . . Classes Destroyed 27 | . 1 1 2 4 1 . . 3 1 3 . 2 . . 1 . . . . 1 . . . . 1 . 2 . . . . 1 . . . . . . 3 . Worker 5 | . . . . 1 1 . . 2 . . . . . . . . . . . . . . . . . . . . . . . . . . . . . . 1 . Builder 4 | . . . . . 1 . . . . . . . . 1 . . . . . . . . . . . . . . . 1 . 1 . . . . . . . . Hauler 47 | . . . 3 6 4 3 . 6 . . . . . 6 . . . . 6 . . . . 7 . . . . 1 . . 1 . 3 . . . 1 . . Recycler 5 | . . 1 . 3 . . . . . . . . . 1 . . . . . . . . . . . . . . . . . . . . . . . . . . Minesweeper 2 | . . . . . . . . . . . . . . . . . . . . 1 1 . . . . . . . . . . . . . . . . . . . Mechanic 5 | . . . . . . . . . . 1 . . . . . . . . 1 . . . 1 1 . 1 . . . . . . . . . . . . . . Operator 8 | . . . . . . . . 3 . . . . . 1 . . . . 1 . . . . 1 . . . . . 1 1 . . . . . . . . . Watcher 41 | . . . . 2 . . . 2 . . . . . 4 . . . . 1 . . . . 8 . . . . 3 1 . 7 2 7 . . . 2 2 . Swarmer 162 | . . . . 4 11 . . . 3 3 . . 6 6 . 7 . 14 5 4 4 . 8 13 . 4 2 4 . 4 8 4 10 3 . . 17 8 10 . Saboteur 1 | . . . . . . . . . . . . . . . . . . . . . . . . . . . . . . . . . . . . . . . 1 . Grunt 145 | . 2 . 3 5 5 . . 4 7 5 . . . 13 3 1 . 4 6 8 3 . 7 5 3 6 16 4 5 . . . 3 2 . . 6 . 19 . Brawler 17 | . . . . 1 . . . . 1 . . . 1 . . . . 2 . . 1 . 1 2 . 4 1 1 1 . . . . 1 . . . . . . Duelist 14 | . . . . . . . . . . 2 . . 1 . . . . 1 . 1 . . 3 . . 2 2 . . . . . . . . . 1 . 1 . Protector 8 | . . . . . . . . . . . . . . . . . . . . . . . . . . . 5 . . . . . . . . . . . 3 . Researcher 1 | . . . . . . . . . . . . . . . 1 . . . . . . . . . . . . . . . . . . . . . . . . . Sentry 46 | . . . 1 4 2 1 . 3 . 1 . . 1 4 . 1 . 2 2 1 1 . 1 10 1 2 . 1 . . 1 2 . . . . . 2 2 . Demolisher 1 | . . . . . . . . . . . . . . . . . . . . . . . . . . . . . . . . . . . . . . . 1 . Specialist 5 | . . . . . . . . . . . . . . . . . . . . . . . . . 3 . 2 . . . . . . . . . . . . . Hunter 46 | . . . . . . . . 2 . . . . . . . 1 . . . . 3 . 4 4 6 . 1 2 . . 2 6 . . 2 . 6 . 7 . Programmer 37 | . . . . . . . . 1 . . . . 1 2 1 1 . . . . 2 . . 5 1 . 2 1 2 . 3 1 2 . . . . 4 8 . Behemoth 18 | . . . . . . . . . 1 1 . . 1 . 1 . . 1 . 1 1 . 1 1 1 1 . 1 . . 1 3 . . 1 . . . 1 . M Guard 2 | . . . . . . . . . . . . . . . . . . . . . . . . . . . . . . . . . . . . . . . 2 . Enhanced Grunt 8 | . . . . . . . . . . . . . . . . . . . . . . . . . . . . . . . . . . . . . . . . 8 Enhanced Hunter 2 | . . . . . . . . . . . . . . . . . . . . . . . . . . . . . . . . . . . . . . . . 2 Combat Programmer 2 | . . . . . . . . . . . . . . . . . . . . . . . . . . . . . . . . . . . . . . . 2 . Striker 4 | . . . . . . . . . . . . . . . . . . . . . . . . . . . 3 . . . . . . . . . . . 1 . Executioner 2 | . . . . . . . . . . . . . . . . . . . . . . . . . . . . . . . . 1 . . . . . . 1 . Alpha 7 2 | . . . . . . . . . . . . . . . . . . . . . . . . . . . . . . . . . . . . . . . 2 . Z-Light 3 | . . . . . . . . . . . . 3 . . . . . . . . . . . . . . . . . . . . . . . . . . . . Assembled 3 | . . . . . . . . . . . . 3 . . . . . . . . . . . . . . . . . . . . . . . . . . . . Wasp 1 | . . . . . . . . . . . . . . . . . . . . . . . . . . . . . . . . 1 . . . . . . . . Mutant 1 | . . . . . . . . . . 1 . . . . . . . . . . . . . . . . . . . . . . . . . . . . . . Best Kill Streak 36 | . 2 1 3 8 9 1 . 4 4 7 . 3 6 8 4 4 . 8 4 6 4 2 7 10 8 9 12 9 4 4 6 8 7 5 2 . 10 9 36 4 Combat Bots Only 34 | . 2 . 3 5 6 1 . 3 4 4 . 3 6 6 4 4 . 8 4 6 4 . 7 10 8 9 12 9 3 4 5 5 7 3 2 . 10 4 34 4 Max Kills in Single Turn 5 | . 1 1 1 2 5 1 . 1 1 1 . 1 1 2 1 1 . 2 1 1 1 1 2 1 2 2 3 2 1 1 2 2 1 1 1 . 2 1 2 2 Gunslinging 1 | . . . . . 1 . . . . . . . . . . . . . . . . . . . . . . . . . . . . . . . . . . . Exploded 2 | . . . . . 2 . . . . . . . . . . . . . . . . . . . . . . . . . . . . . . . . . . . Melee 3 | . . . . . . 1 . 1 1 1 . 1 1 2 1 1 . 2 1 1 1 . 2 1 2 2 3 2 1 1 2 1 1 1 1 . 2 1 2 2 Uniques/NPCs Destroyed 9 | . . . . . . . . . . . . 1 . . . . . . . . . 2 . . . . . . . . . . . . . . . . 2 4 Z-Imprinter (-7/Deep Caves) Perun (-5/Zhirov) Zhirov (-5/Zhirov) MAIN.C Shell (-1/Command) MAIN.C (-1/Command) A8 (-1/Access_0) A6 (-1/Access_0) A5 (-1/Access_0) Architect (-1/Access_0) Combat | -11 -10 -10 -9 -9 -8 -7 -7 -7 -7 -7 -7 -7 -6 -6 -6 -6 -6 -5 -5 -5 -5 -5 -4 -4 -4 -4 -4 -3 -3 -3 -3 -2 -2 -2 -2 -1 -1 -1 -1 -1 -------- Run | Scr Mat Min Mat Sto Mat Fac Was Fac Low Low Zio Dee Pro Fac Low Low Dat Pro Fac Upp Upp Zhi Pro Fac Upp Upp War Pro Res Qua Gar Res Gar Res Gar Acc Gar Acc Com Ac0 Damage Taken 19499 | . 211 . 88 278 188 200 . 163 583 693 . 334 467 375 178 257 . 776 590 746 355 725 801 805 533 260 864 362 106 91 627 652 339 505 62 . 857 250 2787 2391 Core 14454 | . 179 . 68 222 158 170 . 131 471 568 . 264 336 289 147 207 . 615 475 616 291 616 634 664 439 219 649 230 56 60 435 409 237 330 41 . 543 137 1920 1628 Absorbed by Shields 918 | . . . . . . . . . . . . . . . . . . . . . . . 298 297 195 98 . . . . . . 14 . 16 . . . . . Redirected to Core 11346 | . 108 . 68 177 89 113 . 96 370 438 . 264 305 181 110 161 . 546 409 461 217 412 564 463 320 135 475 198 56 43 370 361 181 278 41 . 448 113 1469 1306 Core Remaining (%) 92 | 100 . 91 . 100 96 . . . . . . . 100 . . . . 91 . . . . 93 . . . . 100 . . 95 . . . 100 . . . . 54 Volleys Fired 139 | . 14 5 21 58 36 . . . . . . . . . . . . . . . . . . . . . . . . . . . . . . . . . 5 . Largest 2 | . 2 2 2 2 2 . . . . . . . . . . . . . . . . . . . . . . . . . . . . . . . . . 1 . Hottest 120 | . 70 85 85 91 90 . . . . . . . . . . . . . . . . . . . . . . . . . . . . . . . . . 120 . Shots Fired 265 | . 28 10 42 110 70 . . . . . . . . . . . . . . . . . . . . . . . . . . . . . . . . . 5 . Gun 228 | . 28 10 36 86 68 . . . . . . . . . . . . . . . . . . . . . . . . . . . . . . . . . . . Cannon 33 | . . . 6 24 2 . . . . . . . . . . . . . . . . . . . . . . . . . . . . . . . . . 1 . Launcher . | . . . . . . . . . . . . . . . . . . . . . . . . . . . . . . . . . . . . . . . . . Special 4 | . . . . . . . . . . . . . . . . . . . . . . . . . . . . . . . . . . . . . . . 4 . Kinetic 58 | . 14 5 21 18 . . . . . . . . . . . . . . . . . . . . . . . . . . . . . . . . . . . . Thermal 67 | . 14 5 21 24 2 . . . . . . . . . . . . . . . . . . . . . . . . . . . . . . . . . 1 . Explosive . | . . . . . . . . . . . . . . . . . . . . . . . . . . . . . . . . . . . . . . . . . Electromagnetic 136 | . . . . 68 68 . . . . . . . . . . . . . . . . . . . . . . . . . . . . . . . . . . . Robot Hit Streak 28 | . 10 5 26 28 13 . . . . . . . . . . . . . . . . . . . . . . . . . . . . . . . . . 11 . Robot Miss Streak 6 | . 1 1 2 4 6 . . . . . . . . . . . . . . . . . . . . . . . . . . . . . . . . . . . Penetration Max . | . . . . . . . . . . . . . . . . . . . . . . . . . . . . . . . . . . . . . . . . . Secondary Targets 4 | . . . . 1 3 . . . . . . . . . . . . . . . . . . . . . . . . . . . . . . . . . . . Max Gunslinging Chain 1 | . . . . 1 1 . . . . . . . . . . . . . . . . . . . . . . . . . . . . . . . . . . . Shots Hit Robots 1744 | . 23 8 32 76 51 17 . 46 33 38 . 22 36 74 23 17 . 45 49 52 39 14 83 141 48 43 97 23 19 10 42 58 37 29 11 . 62 35 194 117 Core Hits 853 | . 5 2 12 41 33 4 . 18 13 15 . 6 14 40 9 11 . 27 25 20 17 4 37 67 17 22 43 16 13 7 18 31 19 16 4 . 37 19 101 70 Critical Hits 122 | . . . . 1 1 . . 3 6 2 . 1 2 7 3 3 . 5 8 6 5 1 2 2 . 6 6 2 2 2 3 2 1 1 . . 2 2 23 12 Critical Kills 46 | . . . . . . . . 1 2 1 . . . 5 . 3 . 2 5 . 3 . 2 1 . 3 1 . 2 . 1 1 . 1 . . 1 2 7 2 Critical Parts Destroyed 61 | . . . . 1 1 . . 2 3 . . . 2 2 2 . . 3 2 5 2 1 . 1 . 1 5 2 . 2 2 1 1 . . . 1 . 13 6 Melee Attacks 2210 | . . . . . 3 23 . 68 39 42 4 23 44 119 38 27 . 58 96 59 48 15 100 199 59 51 115 30 45 28 84 85 69 43 19 . 103 62 281 131 Impact 32 | . . . . . 3 9 . 20 . . . . . . . . . . . . . . . . . . . . . . . . . . . . . . . . Slashing 1520 | . . . . . . 14 . 48 39 42 4 23 44 119 38 27 . 58 89 59 48 15 100 199 59 51 101 11 13 5 25 27 18 11 7 . 35 23 103 65 Piercing 658 | . . . . . . . . . . . . . . . . . . . 7 . . . . . . . 14 19 32 23 59 58 51 32 12 . 68 39 178 66 Sneak Attacks 105 | . . . . . 1 4 . 16 . 4 . . . 11 2 1 . . 12 1 4 1 4 16 . 3 . 2 2 2 2 6 4 4 . . . 1 2 . Combat Hostiles 22 | . . . . . . . . . . 2 . . . 2 . 1 . . 3 . 3 . 2 2 . . . 2 . . . 2 2 . . . . . 1 . Follow-up Attacks 568 | . . . . . . 5 . 11 5 4 . 6 5 23 7 3 . 16 11 17 14 7 34 56 19 17 46 8 6 2 16 20 13 9 6 . 24 14 84 60 Damage Inflicted 119323 | . 227 82 393 1129 1072 990 . 3487 2101 2697 . 1391 2258 5623 1753 1282 . 2664 4256 2785 2627 1126 4850 10766 3364 3184 6602 1897 1663 836 3516 4939 3022 2553 877 . 5058 2870 17683 7700 Guns 2223 | . 227 82 291 807 816 . . . . . . . . . . . . . . . . . . . . . . . . . . . . . . . . . . . Cannons 444 | . . . 102 322 20 . . . . . . . . . . . . . . . . . . . . . . . . . . . . . . . . . . . Explosions 140 | . . . . . 140 . . . . . . . . . . . . . . . . . . . . . . . . . . . . . . . . . . . Melee 116516 | . . . . . 96 990 . 3487 2101 2697 . 1391 2258 5623 1753 1282 . 2664 4256 2785 2627 1126 4850 10766 3364 3184 6602 1897 1663 836 3516 4939 3022 2553 877 . 5058 2870 17683 7700 Ramming . | . . . . . . . . . . . . . . . . . . . . . . . . . . . . . . . . . . . . . . . . . Kinetic 336 | . 90 30 132 84 . . . . . . . . . . . . . . . . . . . . . . . . . . . . . . . . . . . . Thermal 932 | . 137 52 261 322 160 . . . . . . . . . . . . . . . . . . . . . . . . . . . . . . . . . . . Explosive . | . . . . . . . . . . . . . . . . . . . . . . . . . . . . . . . . . . . . . . . . . Electromagnetic 1539 | . . . . 723 816 . . . . . . . . . . . . . . . . . . . . . . . . . . . . . . . . . . . Impact 999 | . . . . . 96 352 . 551 . . . . . . . . . . . . . . . . . . . . . . . . . . . . . . . . Slashing 77415 | . . . . . . 638 . 2936 2101 2697 . 1391 2258 5623 1753 1282 . 2664 4167 2785 2627 1126 4850 10766 3364 3184 5578 428 373 . 509 1150 785 523 415 . 1364 569 5838 3671 Piercing 38102 | . . . . . . . . . . . . . . . . . . . 89 . . . . . . . 1024 1469 1290 836 3007 3789 2237 2030 462 . 3694 2301 11845 4029 Highest Corruption 10 | . . . . . . . . . . . . . . . . 1 1 1 . . . 1 1 5 7 7 8 . 1 1 1 3 3 3 3 . . 1 10 . Average Corruption 3 | . . . . . . . . . . . . . . . . 1 1 1 . . . 1 1 3 5 7 7 . 1 1 1 3 3 3 3 . . 1 5 . Corruption Purged 10 | . . . . . . . . . . . . . . . . . . . . . . . . . . . . . . . . . . . . . . . 10 . Effects 136 | . . . . . . . . . . . . . . . . . . 3 . . . 1 5 10 16 18 . . . 1 1 19 8 6 3 . . . 45 . Message Errors 29 | . . . . . . . . . . . . . . . . . . . . . . . 1 4 5 4 . . . . . 6 2 . 1 . . . 6 . Matter Fused 27 | . . . . . . . . . . . . . . . . . . . . . . . . 2 2 5 . . . . . 8 3 . . . . . 7 . Heat Flow Errors 16 | . . . . . . . . . . . . . . . . . . . . . . . . . 1 1 . . . . . 1 . 2 . . . . 11 . Energy Discharges 12 | . . . . . . . . . . . . . . . . . . . . . . 1 . 2 2 2 . . . . . 1 1 1 . . . . 2 . Parts Rejected 1 | . . . . . . . . . . . . . . . . . . . . . . . . . . . . . . . . . . . . . . . 1 . Data Loss (minor) 15 | . . . . . . . . . . . . . . . . . . 1 . . . . . . 2 3 . . . 1 . 1 1 1 2 . . . 3 . Data Loss (major) 2 | . . . . . . . . . . . . . . . . . . . . . . . . . 2 . . . . . . . . . . . . . . . Misdirections 3 | . . . . . . . . . . . . . . . . . . . . . . . . . . . . . . . . . . . . . . . 3 . Targeting Errors 31 | . . . . . . . . . . . . . . . . . . 2 . . . . 4 2 2 3 . . . . 1 2 1 2 . . . . 12 . Overload Shots . | . . . . . . . . . . . . . . . . . . . . . . . . . . . . . . . . . . . . . . . . . Overflow Damage 9043 | . . . . 5 21 199 . 800 135 66 . 289 188 568 355 204 . 151 687 9 305 64 409 955 29 276 527 125 37 . 236 196 220 292 29 . 260 214 927 265 Projectiles 5 | . . . . 5 . . . . . . . . . . . . . . . . . . . . . . . . . . . . . . . . . . . . Explosions . | . . . . . . . . . . . . . . . . . . . . . . . . . . . . . . . . . . . . . . . . . Melee 9038 | . . . . . 21 199 . 800 135 66 . 289 188 568 355 204 . 151 687 9 305 64 409 955 29 276 527 125 37 . 236 196 220 292 29 . 260 214 927 265 Knockbacks . | . . . . . . . . . . . . . . . . . . . . . . . . . . . . . . . . . . . . . . . . . Impact . | . . . . . . . . . . . . . . . . . . . . . . . . . . . . . . . . . . . . . . . . . Kinetic . | . . . . . . . . . . . . . . . . . . . . . . . . . . . . . . . . . . . . . . . . . Secondary . | . . . . . . . . . . . . . . . . . . . . . . . . . . . . . . . . . . . . . . . . . Self-Inflicted Damage 7 | . . . . . 7 . . . . . . . . . . . . . . . . . . . . . . . . . . . . . . . . . . . Shots 1 | . . . . . 1 . . . . . . . . . . . . . . . . . . . . . . . . . . . . . . . . . . . Rammed . | . . . . . . . . . . . . . . . . . . . . . . . . . . . . . . . . . . . . . . . . . Targets Rammed . | . . . . . . . . . . . . . . . . . . . . . . . . . . . . . . . . . . . . . . . . . Kicked . | . . . . . . . . . . . . . . . . . . . . . . . . . . . . . . . . . . . . . . . . . Crushed . | . . . . . . . . . . . . . . . . . . . . . . . . . . . . . . . . . . . . . . . . . Highest Temperature 399 | . 24 26 52 399 180 11 . 36 . . . 3 . 358 . . . . . . . . . . 106 238 . . . . . 255 . 190 . . . . 249 . Average Temperature 44 | . 9 17 21 44 27 8 . 16 . . . 3 . 168 . . . . . . . . . . 54 124 . . . . . 150 . 99 . . . . 90 . Received Heat Transfer 2869 | . 141 . 42 90 72 72 . 69 261 147 . 148 48 93 48 . . 120 54 231 81 . 87 66 42 42 174 33 42 . 54 162 30 9 12 . 54 18 261 66 Siege Activations . | . . . . . . . . . . . . . . . . . . . . . . . . . . . . . . . . . . . . . . . . . Robots Corrupted 2 | . . . . . 2 . . . . . . . . . . . . . . . . . . . . . . . . . . . . . . . . . . . Combat Hostiles 2 | . . . . . 2 . . . . . . . . . . . . . . . . . . . . . . . . . . . . . . . . . . . Parts Fried 14 | . . . . 4 5 4 . 1 . . . . . . . . . . . . . . . . . . . . . . . . . . . . . . . . Impact Corruptions 7 | . . . . . 1 3 . 3 . . . . . . . . . . . . . . . . . . . . . . . . . . . . . . . . Robots Melted . | . . . . . . . . . . . . . . . . . . . . . . . . . . . . . . . . . . . . . . . . . Combat Hostiles . | . . . . . . . . . . . . . . . . . . . . . . . . . . . . . . . . . . . . . . . . . Parts Melted 10 | . 1 . 1 . 2 . . . 2 1 . . . . . . . . . . 1 . . . . . . . . . . . 1 . . . . . 1 . Heat Transferred 2013 | . 407 111 592 666 237 . . . . . . . . . . . . . . . . . . . . . . . . . . . . . . . . . . . Parts Sabotaged . | . . . . . . . . . . . . . . . . . . . . . . . . . . . . . . . . . . . . . . . . . Parts Stolen . | . . . . . . . . . . . . . . . . . . . . . . . . . . . . . . . . . . . . . . . . . Parts Stripped . | . . . . . . . . . . . . . . . . . . . . . . . . . . . . . . . . . . . . . . . . . Power Chain Reactions 1 | . . . . . 1 . . . . . . . . . . . . . . . . . . . . . . . . . . . . . . . . . . . Missiles Intercepted . | . . . . . . . . . . . . . . . . . . . . . . . . . . . . . . . . . . . . . . . . . Alert | -11 -10 -10 -9 -9 -8 -7 -7 -7 -7 -7 -7 -7 -6 -6 -6 -6 -6 -5 -5 -5 -5 -5 -4 -4 -4 -4 -4 -3 -3 -3 -3 -2 -2 -2 -2 -1 -1 -1 -1 -1 ------- Run | Scr Mat Min Mat Sto Mat Fac Was Fac Low Low Zio Dee Pro Fac Low Low Dat Pro Fac Upp Upp Zhi Pro Fac Upp Upp War Pro Res Qua Gar Res Gar Res Gar Acc Gar Acc Com Ac0 Peak Influence 1805 | . 65 45 226 384 684 456 226 1225 . . . . . 708 . . . . 812 . . . . 1805 . . . . 389 369 657 1280 1607 1334 1080 648 1234 1230 1477 . Initial 1000 | . . 25 17 94 34 310 159 158 . . . . . 35 . . . . 544 . . . . 277 . . . . 72 165 183 369 903 903 1000 648 518 740 787 . Average 701 | . 17 30 118 208 385 382 204 865 . . . . . 346 . . . . 679 . . . . 1185 . . . . 248 244 474 829 1329 1138 1044 648 816 990 984 . Maximum Alert Level 5 | . . . 1 1 2 2 1 4 . . . . . 3 . . . . 3 . . . . 5 . . . . 1 1 2 4 5 4 3 2 4 4 5 . Low Security (%) 11 | 100 100 100 86 47 16 . 25 7 . . . . . 16 . . . . . . . . . . . . . . 29 10 5 . . . . . . . . . Level 1 17 | . . . 13 52 38 50 74 10 . . . . . 57 . . . . . . . . . 4 . . . . 70 89 29 2 . . . . . . . . Level 2 18 | . . . . . 45 49 . 3 . . . . . 17 . . . . 68 . . . . 17 . . . . . . 64 40 . . . 100 34 . 2 . Level 3 21 | . . . . . . . . 51 . . . . . 7 . . . . 31 . . . . 11 . . . . . . . 26 19 33 100 . 59 82 21 . Level 4 17 | . . . . . . . . 26 . . . . . . . . . . . . . . . 46 . . . . . . . 30 65 66 . . 6 17 10 . Level 5 13 | . . . . . . . . . . . . . . . . . . . . . . . . 16 . . . . . . . . 15 . . . . . 64 . High Security . | . . . . . . . . . . . . . . . . . . . . . . . . 4 . . . . . . . . . . . . . . . . Max Security . | . . . . . . . . . . . . . . . . . . . . . . . . . . . . . . . . . . . . . . . . . Squads Dispatched 59 | . . 1 1 2 3 2 . 5 . 1 . . . 6 . . . 1 7 . 1 . 1 10 . 1 . . 2 2 . 3 . 7 . . . 1 2 . Investigation 13 | . . 1 1 1 . . . 2 . . . . . 3 . . . . 1 . . . . 2 . . . . . 1 . 1 . . . . . . . . Extermination 7 | . . . . . . . . 1 . . . . . 1 . . . . . . . . . . . . . . 1 1 . . . 1 . . . 1 1 . Reinforcement 22 | . . . . 1 2 2 . 1 . . . . . 2 . . . . 3 . . . . 4 . . . . 1 . . 2 . 3 . . . . 1 . Assault 11 | . . . . . . . . 1 . 1 . . . . . . . 1 . . 1 . 1 3 . 1 . . . . . . . 2 . . . . . . Garrison 6 | . . . . . 1 . . . . . . . . . . . . . 3 . . . . 1 . . . . . . . . . 1 . . . . . . Intercept . | . . . . . . . . . . . . . . . . . . . . . . . . . . . . . . . . . . . . . . . . . Construction Impeded 2 | . . . . . 1 . . . . . . . . . . . . . . . . . . . . . . . . . . . . 1 . . . . . . Haulers Reinforced 9 | . . . . . . 2 . 1 . . . . . 1 . . . . 1 . . . . 2 . . . . . . . 2 . . . . . . . . Alert ID Control Effect 1 | . . . . . . . . . . . . . . . . . . . . . . . . . . . . . . . . . . . . . . . 1 . Stealth | -11 -10 -10 -9 -9 -8 -7 -7 -7 -7 -7 -7 -7 -6 -6 -6 -6 -6 -5 -5 -5 -5 -5 -4 -4 -4 -4 -4 -3 -3 -3 -3 -2 -2 -2 -2 -1 -1 -1 -1 -1 --------- Run | Scr Mat Min Mat Sto Mat Fac Was Fac Low Low Zio Dee Pro Fac Low Low Dat Pro Fac Upp Upp Zhi Pro Fac Upp Upp War Pro Res Qua Gar Res Gar Res Gar Acc Gar Acc Com Ac0 Distress Signals 44 | . 1 . 1 1 3 . . . . . . . . 3 . . . . 1 . . . . 2 . . . . . 2 . 2 . 2 . . . 2 24 . Communications Jammed . | . . . . . . . . . . . . . . . . . . . . . . . . . . . . . . . . . . . . . . . . . Distress Signals . | . . . . . . . . . . . . . . . . . . . . . . . . . . . . . . . . . . . . . . . . . Times Spotted 916 | . 4 3 8 22 28 3 7 28 16 17 . 9 12 42 5 13 . 39 36 16 17 3 30 55 15 19 72 13 15 11 15 60 29 32 3 . 54 25 107 33 Peak Tracking Total 14 | . 4 3 4 5 6 2 6 5 4 5 . 3 4 7 3 5 . 9 11 7 10 3 7 7 4 9 14 9 3 4 5 10 7 9 4 . 12 6 11 7 Tactical Retreats 59 | . . . . 2 . 1 1 . 1 . . . . 3 . . . 3 9 . 2 . 1 2 . . . . 1 2 . 8 3 7 1 . 6 3 3 . Traps | -11 -10 -10 -9 -9 -8 -7 -7 -7 -7 -7 -7 -7 -6 -6 -6 -6 -6 -5 -5 -5 -5 -5 -4 -4 -4 -4 -4 -3 -3 -3 -3 -2 -2 -2 -2 -1 -1 -1 -1 -1 ------- Run | Scr Mat Min Mat Sto Mat Fac Was Fac Low Low Zio Dee Pro Fac Low Low Dat Pro Fac Upp Upp Zhi Pro Fac Upp Upp War Pro Res Qua Gar Res Gar Res Gar Acc Gar Acc Com Ac0 Traps Triggered 16 | . . . . . . 2 . . . . . . . 1 . . . . 2 . . . . 2 . . . . . 1 . . 3 2 1 . 1 . 1 . Indirectly . | . . . . . . . . . . . . . . . . . . . . . . . . . . . . . . . . . . . . . . . . . Trap Hack Attempts . | . . . . . . . . . . . . . . . . . . . . . . . . . . . . . . . . . . . . . . . . . Triggered . | . . . . . . . . . . . . . . . . . . . . . . . . . . . . . . . . . . . . . . . . . Disarmed . | . . . . . . . . . . . . . . . . . . . . . . . . . . . . . . . . . . . . . . . . . Reprogrammed . | . . . . . . . . . . . . . . . . . . . . . . . . . . . . . . . . . . . . . . . . . Reused 1 | . . . 1 . . . . . . . . . . . . . . . . . . . . . . . . . . . . . . . . . . . . . Traps Extracted . | . . . . . . . . . . . . . . . . . . . . . . . . . . . . . . . . . . . . . . . . . Installed 1 | . . . 1 . . . . . . . . . . . . . . . . . . . . . . . . . . . . . . . . . . . . . Triggered 9 | . . . 1 1 . . . . . . . . . . 1 . . . . 2 1 . . . . . 3 . . . . . . . . . . . . . Machines | -11 -10 -10 -9 -9 -8 -7 -7 -7 -7 -7 -7 -7 -6 -6 -6 -6 -6 -5 -5 -5 -5 -5 -4 -4 -4 -4 -4 -3 -3 -3 -3 -2 -2 -2 -2 -1 -1 -1 -1 -1 ---------- Run | Scr Mat Min Mat Sto Mat Fac Was Fac Low Low Zio Dee Pro Fac Low Low Dat Pro Fac Upp Upp Zhi Pro Fac Upp Upp War Pro Res Qua Gar Res Gar Res Gar Acc Gar Acc Com Ac0 Machines Disabled 39 | . . . . 5 1 . . 3 . . 3 1 . 2 . 2 . . . . 1 1 . 1 1 . . . . 1 2 . 3 . . . 1 . 5 6 Max in Single Turn 2 | . . . . 1 1 . . 1 . . 1 . . 1 . 1 . . . . 1 . . 1 1 . . . . 1 1 . 1 . . . 1 . 2 1 Garrison Access 10 | . . . . . . . . 2 . . . . . 3 . . . . 1 . . . . 2 . . . . . . . 1 . 1 . . . . . . Garrison Relay 5 | . . . . . . . . . . . . . . . . . . . . . . . . . . . . . . . 2 . 3 . . . . . . . Phase Generator 1 | . . . . . . . . . . . . . . . . . . . . . . . . . . . . . . . . . . . . . . . 1 . Machines Sabotaged . | . . . . . . . . . . . . . . . . . . . . . . . . . . . . . . . . . . . . . . . . . Garrisons Compromised . | . . . . . . . . . . . . . . . . . . . . . . . . . . . . . . . . . . . . . . . . . Overloaded Fab Kills . | . . . . . . . . . . . . . . . . . . . . . . . . . . . . . . . . . . . . . . . . . Fab Network Shutdowns 2 | . . . . . . . . . . . . . . . . . . . . . . . . 1 . . . . . . . 1 . . . . . . . . Hacking | -11 -10 -10 -9 -9 -8 -7 -7 -7 -7 -7 -7 -7 -6 -6 -6 -6 -6 -5 -5 -5 -5 -5 -4 -4 -4 -4 -4 -3 -3 -3 -3 -2 -2 -2 -2 -1 -1 -1 -1 -1 --------- Run | Scr Mat Min Mat Sto Mat Fac Was Fac Low Low Zio Dee Pro Fac Low Low Dat Pro Fac Upp Upp Zhi Pro Fac Upp Upp War Pro Res Qua Gar Res Gar Res Gar Acc Gar Acc Com Ac0 Machines Accessed 144 | . 1 1 3 13 5 6 . 14 . . . . 1 18 1 . 4 . 17 2 . 4 . 16 1 . 3 . 7 13 . 5 . 3 . 1 . . 5 . Terminals 92 | . 1 . 3 13 5 5 . 9 . . . . 1 10 . . . . 11 1 . . . 10 1 . . . 4 12 . . . 1 . . . . 5 . Fabricators 19 | . . . . . . 1 . 3 . . . . . 4 . . . . 5 . . . . 2 . . . . 2 . . 2 . . . . . . . . Repair Stations . | . . . . . . . . . . . . . . . . . . . . . . . . . . . . . . . . . . . . . . . . . Recycling Units 3 | . . . . . . . . . . . . . . 1 . . . . . . . . . 1 . . . . 1 . . . . . . . . . . . Scanalyzers 1 | . . . . . . . . . . . . . . . . . . . . . . . . 1 . . . . . . . . . . . . . . . . Garrison Access 15 | . . . . . . . . 2 . . . . . 3 . . . . 1 . . . . 2 . . . . . 1 . 3 . 2 . 1 . . . . Total Hacks 599 | . 3 1 15 35 14 22 . 42 . . . . 4 64 1 . 25 . 73 14 . 17 . 92 22 . 8 . 35 53 . 21 . 8 . 1 . . 29 . Successful 397 | . . 1 5 25 9 14 . 26 . . . . 2 37 1 . 25 . 40 12 . 17 . 60 18 . 8 . 18 39 . 13 . 8 . 1 . . 18 . Failed 197 | . 3 . 10 9 5 7 . 16 . . . . 2 27 . . . . 32 1 . . . 32 3 . . . 17 14 . 8 . . . . . . 11 . Catastrophic 16 | . 2 . . 1 . . . . . . . . . 4 . . . . 1 . . . . 1 . . . . 2 2 . 1 . . . . . . 2 . Database Lockouts 5 | . . . . 1 . 1 . . . . . . . . . . . . 1 1 . . . . 1 . . . . . . . . . . . . . . . Manual 281 | . 3 . 13 18 6 9 . 18 . . . . 4 26 . . . . 31 4 . . . 49 16 . 1 . 12 28 . 15 . 4 . . . . 24 . Terminals 436 | . 3 . 15 35 14 20 . 34 . . . . 4 42 . . . . 46 13 . . . 80 22 . . . 25 50 . . . 4 . . . . 29 . Fabricators 69 | . . . . . . 2 . 6 . . . . . 15 . . . . 21 . . . . 7 . . . . 8 . . 10 . . . . . . . . Repair Stations . | . . . . . . . . . . . . . . . . . . . . . . . . . . . . . . . . . . . . . . . . . Recycling Units 4 | . . . . . . . . . . . . . . 1 . . . . . . . . . 1 . . . . 2 . . . . . . . . . . . Scanalyzers 2 | . . . . . . . . . . . . . . . . . . . . . . . . 2 . . . . . . . . . . . . . . . . Garrison Access 35 | . . . . . . . . 2 . . . . . 6 . . . . 6 . . . . 2 . . . . . 3 . 11 . 4 . 1 . . . . Terminal Hacks 243 | . . 1 4 13 6 9 . 17 . . . . 2 16 1 . 25 . 17 12 . 17 . 38 17 . 8 . 8 19 . . . 2 . . . . 11 . Record 35 | . . . . . . . . . . . . . . . . . 11 . . 9 . 5 . 1 7 . 2 . . . . . . . . . . . . . Part Schematic 27 | . . . . . . 1 . 2 . . . . 1 2 . . 7 . 2 . . 4 . 6 1 . . . 1 . . . . . . . . . . . Robot Schematic 5 | . . . . . . . . . . . . . . . . . 4 . . . . . . . . . . . . 1 . . . . . . . . . . Robot Analysis 15 | . . . . 1 . 2 . 2 . . . . . . . . . . . . . 4 . 2 . . . . 3 1 . . . . . . . . . . Prototype ID Bank 70 | . . . 3 3 2 2 . 6 . . . . 1 3 . . 3 . 3 2 . 4 . 13 9 . 6 . 1 6 . . . 1 . . . . 2 . Open Door 7 | . . 1 . 3 . . . . . . . . . . 1 . . . . 1 . . . . . . . . . . . . . . . . . . 1 . Level Access Points 1 | . . . . . 1 . . . . . . . . . . . . . . . . . . . . . . . . . . . . . . . . . . . Branch Access Points 5 | . . . 1 . 1 . . 1 . . . . . 1 . . . . . . . . . 1 . . . . . . . . . . . . . . . . Emergency Access Points 4 | . . . . . . . . . . . . . . 1 . . . . . . . . . 2 . . . . . 1 . . . . . . . . . . Machine Index 1 | . . . . . . . . . . . . . . 1 . . . . . . . . . . . . . . . . . . . . . . . . . . Terminal Index 2 | . . . . . . 1 . . . . . . . . . . . . 1 . . . . . . . . . . . . . . . . . . . . . Fabricator Index 3 | . . . . . . . . . . . . . . . . . . . 1 . . . . 1 . . . . . 1 . . . . . . . . . . Scanalyzer Index 1 | . . . . . . . . . . . . . . . . . . . . . . . . . . . . . . 1 . . . . . . . . . . Garrison Index 1 | . . . . . . . . . . . . . . . . . . . . . . . . . . . . . . 1 . . . . . . . . . . Alert Level 4 | . . . . . . . . . . . . . . . . . . . 1 . . . . 1 . . . . 1 . . . . . . . . . 1 . Unreport Threat 14 | . . . . 3 . . . . . . . . . 1 . . . . 2 . . . . 1 . . . . 1 1 . . . . . . . . 5 . Locate Traps 22 | . . . . 1 1 1 . 4 . . . . . 5 . . . . 4 . . . . 3 . . . . . 2 . . . . . . . . 1 . Security Status 1 | . . . . . . . . . . . . . . . . . . . . . . . . . . . . . . 1 . . . . . . . . . . Recall Assault 2 | . . . . . . . . . . . . . . . . . . . . . . . . 2 . . . . . . . . . . . . . . . . Hauler Manifests 12 | . . . . . 1 1 . 1 . . . . . 2 . . . . 2 . . . . 2 . . . . 1 1 . . . 1 . . . . . . Registered Components 3 | . . . . 1 . 1 . . . . . . . . . . . . . . . . . . . . . . . 1 . . . . . . . . . . Registered Prototypes 5 | . . . . 1 . . . 1 . . . . . . . . . . 1 . . . . 1 . . . . . 1 . . . . . . . . . . Zone Layout 2 | . . . . . . . . . . . . . . . . . . . . . . . . 2 . . . . . . . . . . . . . . . . Disengage Seal 1 | . . . . . . . . . . . . . . . . . . . . . . . . . . . . . . . . . . . . . . . 1 . Fabricator Hacks 27 | . . . . . . . . 2 . . . . . 6 . . . . 9 . . . . 2 . . . . 4 . . 4 . . . . . . . . Load Schematic 13 | . . . . . . . . . . . . . . 3 . . . . 5 . . . . 1 . . . . 2 . . 2 . . . . . . . . Build 14 | . . . . . . . . 2 . . . . . 3 . . . . 4 . . . . 1 . . . . 2 . . 2 . . . . . . . . Repair Station Hacks . | . . . . . . . . . . . . . . . . . . . . . . . . . . . . . . . . . . . . . . . . . Recycling Unit Hacks 2 | . . . . . . . . . . . . . . . . . . . . . . . . . . . . . 2 . . . . . . . . . . . Retrieve Matter 1 | . . . . . . . . . . . . . . . . . . . . . . . . . . . . . 1 . . . . . . . . . . . Retrieve Components 1 | . . . . . . . . . . . . . . . . . . . . . . . . . . . . . 1 . . . . . . . . . . . Scanalyzer . | . . . . . . . . . . . . . . . . . . . . . . . . . . . . . . . . . . . . . . . . . Garrison Access Hacks 14 | . . . . . . . . 2 . . . . . 3 . . . . 1 . . . . 2 . . . . . 1 . 2 . 2 . 1 . . . . Unlock Access 6 | . . . . . . . . . . . . . . . . . . . . . . . . . . . . . . 1 . 2 . 2 . 1 . . . . Seal Access 8 | . . . . . . . . 2 . . . . . 3 . . . . 1 . . . . 2 . . . . . . . . . . . . . . . . Unauthorized Hacks 111 | . . . 1 12 3 5 . 5 . . . . . 12 . . . . 13 . . . . 18 1 . . . 4 19 . 7 . 4 . . . . 7 . Terminals 82 | . . . 1 12 3 3 . 4 . . . . . 6 . . . . 11 . . . . 12 1 . . . 3 17 . . . 2 . . . . 7 . Track 30 | . . . . 7 1 1 . . . . . . . 2 . . . . 3 . . . . 5 . . . . 1 7 . . . 1 . . . . 2 . Assimilate 5 | . . . . . . . . 1 . . . . . 1 . . . . 1 . . . . . . . . . . 2 . . . . . . . . . . Botnet 35 | . . . 1 2 1 2 . 3 . . . . . 3 . . . . 5 . . . . 6 . . . . 2 6 . . . 1 . . . . 3 . Detonate 1 | . . . . . . . . . . . . . . . . . . . 1 . . . . . . . . . . . . . . . . . . . . . Disrupt 5 | . . . . 3 1 . . . . . . . . . . . . . . . . . . 1 . . . . . . . . . . . . . . . . Operators 5 | . . . . . . . . . . . . . . . . . . . 1 . . . . . . . . . . 2 . . . . . . . . 2 . Search 1 | . . . . . . . . . . . . . . . . . . . . . . . . . 1 . . . . . . . . . . . . . . . Fabricators 17 | . . . . . . 2 . 1 . . . . . 5 . . . . 2 . . . . 4 . . . . 1 . . 2 . . . . . . . . Report 3 | . . . . . . 1 . . . . . . . 1 . . . . . . . . . 1 . . . . . . . . . . . . . . . . Prioritize 6 | . . . . . . . . . . . . . . 3 . . . . 1 . . . . 1 . . . . . . . 1 . . . . . . . . Haulers 8 | . . . . . . 1 . 1 . . . . . 1 . . . . 1 . . . . 2 . . . . 1 . . 1 . . . . . . . . Repair Stations . | . . . . . . . . . . . . . . . . . . . . . . . . . . . . . . . . . . . . . . . . . Recycling Units 2 | . . . . . . . . . . . . . . 1 . . . . . . . . . 1 . . . . . . . . . . . . . . . . Tunnel 2 | . . . . . . . . . . . . . . 1 . . . . . . . . . 1 . . . . . . . . . . . . . . . . Scanalyzers 1 | . . . . . . . . . . . . . . . . . . . . . . . . 1 . . . . . . . . . . . . . . . . Extract 1 | . . . . . . . . . . . . . . . . . . . . . . . . 1 . . . . . . . . . . . . . . . . Garrison Access 9 | . . . . . . . . . . . . . . . . . . . . . . . . . . . . . . 2 . 5 . 2 . . . . . . Broadcast 3 | . . . . . . . . . . . . . . . . . . . . . . . . . . . . . . 1 . 1 . 1 . . . . . . Reprogram 5 | . . . . . . . . . . . . . . . . . . . . . . . . . . . . . . 1 . 3 . 1 . . . . . . Watchers 1 | . . . . . . . . . . . . . . . . . . . . . . . . . . . . . . . . 1 . . . . . . . . Data Cores Recovered 4 | . . . . . . . . 2 . . . . . . . . . . 1 . . . . . . . . . . 1 . . . . . . . . . . Used 2 | . . . . . . . . 1 . . . . . . . . . . 1 . . . . . . . . . . . . . . . . . . . . . Hacking Detections 96 | . 1 . 3 10 4 4 . 11 . . . . 1 14 . . . . 14 . . . . 11 1 . . . 4 10 . 3 . 1 . . . . 4 . Full Trace Events 8 | . . . . 2 . . . 2 . . . . . 2 . . . . 1 . . . . . . . . . . . . 1 . . . . . . . . Feedback Events 1 | . . . . . . . . 1 . . . . . . . . . . . . . . . . . . . . . . . . . . . . . . . . Hackware Fried 1 | . . . . . . . . 1 . . . . . . . . . . . . . . . . . . . . . . . . . . . . . . . . Feedback Blocked . | . . . . . . . . . . . . . . . . . . . . . . . . . . . . . . . . . . . . . . . . . Robot Schematics Acquired 5 | . . . . . . . . . . . . . . . . . 4 . . . . . . . . . . . . 1 . . . . . . . . . . Robots Built 9 | . . . . . . . . 5 . . . . . . . . . . . . . . . . . . . . . . . 4 . . . . . . . . Matter 1272 | . . . . . . . . 504 . . . . . . . . . . . . . . . . . . . . . . . 768 . . . . . . . . Time 371 | . . . . . . . . 201 . . . . . . . . . . . . . . . . . . . . . . . 170 . . . . . . . . Total Robot Build Rating 52 | . . . . . . . . 20 . . . . . . . . . . . . . . . . . . . . . . . 32 . . . . . . . . Part Schematics Acquired 28 | . . . . . . 1 . 2 . . . . 1 2 . . 7 . 2 . . 4 . 7 1 . . . 1 . . . . . . . . . . . Parts Built 11 | . . . . . . . . . . . . . . 3 . . . . 4 . . . . 1 . . . . 3 . . . . . . . . . . . Matter 2193 | . . . . . . . . . . . . . . 570 . . . . 804 . . . . 256 . . . . 563 . . . . . . . . . . . Time 680 | . . . . . . . . . . . . . . 237 . . . . 196 . . . . 128 . . . . 119 . . . . . . . . . . . Total Part Build Rating 66 | . . . . . . . . . . . . . . 15 . . . . 20 . . . . 8 . . . . 23 . . . . . . . . . . . Parts Repaired . | . . . . . . . . . . . . . . . . . . . . . . . . . . . . . . . . . . . . . . . . . Time . | . . . . . . . . . . . . . . . . . . . . . . . . . . . . . . . . . . . . . . . . . Parts Recycled . | . . . . . . . . . . . . . . . . . . . . . . . . . . . . . . . . . . . . . . . . . Recycled Matter . | . . . . . . . . . . . . . . . . . . . . . . . . . . . . . . . . . . . . . . . . . Retrieved Matter . | . . . . . . . . . . . . . . . . . . . . . . . . . . . . . . . . . . . . . . . . . Retrieved Components . | . . . . . . . . . . . . . . . . . . . . . . . . . . . . . . . . . . . . . . . . . Parts Scanalyzed . | . . . . . . . . . . . . . . . . . . . . . . . . . . . . . . . . . . . . . . . . . Part Schematics Acquired . | . . . . . . . . . . . . . . . . . . . . . . . . . . . . . . . . . . . . . . . . . Parts Damaged . | . . . . . . . . . . . . . . . . . . . . . . . . . . . . . . . . . . . . . . . . . Bothacking | -11 -10 -10 -9 -9 -8 -7 -7 -7 -7 -7 -7 -7 -6 -6 -6 -6 -6 -5 -5 -5 -5 -5 -4 -4 -4 -4 -4 -3 -3 -3 -3 -2 -2 -2 -2 -1 -1 -1 -1 -1 ------------ Run | Scr Mat Min Mat Sto Mat Fac Was Fac Low Low Zio Dee Pro Fac Low Low Dat Pro Fac Upp Upp Zhi Pro Fac Upp Upp War Pro Res Qua Gar Res Gar Res Gar Acc Gar Acc Com Ac0 Used RIF Installer 4 | . . . . . . . . . . . . . . . . . . . . . . . . . . . . . . . 1 . 1 . 1 . 1 . . . Coupler Efficiency 2 | . . . . . . . . . . . . . . . . . . . . . . . . . . . . . . . . . 1 . 1 . . . . . Alert ID Control 1 | . . . . . . . . . . . . . . . . . . . . . . . . . . . . . . . . . . . . . 1 . . . Robots Hacked 3 | . . . . . . . . . . . . . . . . . . . . . . . . . . . . . . . . . . . . . . . 3 . Non-combat . | . . . . . . . . . . . . . . . . . . . . . . . . . . . . . . . . . . . . . . . . . Combat 3 | . . . . . . . . . . . . . . . . . . . . . . . . . . . . . . . . . . . . . . . 3 . Robot Hacks Applied 3 | . . . . . . . . . . . . . . . . . . . . . . . . . . . . . . . . . . . . . . . 3 . formatsys_high 3 | . . . . . . . . . . . . . . . . . . . . . . . . . . . . . . . . . . . . . . . 3 . Relay Couplers Released 12 | . . . . . . . . . . . . . . . . . . . . . . . . 1 . . . . . . 3 3 4 1 . . . . . . Machine Destruction 9 | . . . . . . . . . . . . . . . . . . . . . . . . . . . . . . . 3 1 4 1 . . . . . . Programmers 3 | . . . . . . . . . . . . . . . . . . . . . . . . 1 . . . . . . . 2 . . . . . . . . Attached 1 | . . . . . . . . . . . . . . . . . . . . . . . . . . . . . . . . . . . . . . . 1 . Robots Rewired 28 | . . . . . . . . . . 1 . . . . . . . 2 . . 5 . 1 . . 2 1 2 . . 6 . 8 . . . . . . . Allies Hacked 1 | . . . . . . . . 1 . . . . . . . . . . . . . . . . . . . . . . . . . . . . . . . . Hacks Repelled 1 | . . . . . . . . . . . . . . . . . . . . . . . 1 . . . . . . . . . . . . . . . . . Allies | -11 -10 -10 -9 -9 -8 -7 -7 -7 -7 -7 -7 -7 -6 -6 -6 -6 -6 -5 -5 -5 -5 -5 -4 -4 -4 -4 -4 -3 -3 -3 -3 -2 -2 -2 -2 -1 -1 -1 -1 -1 -------- Run | Scr Mat Min Mat Sto Mat Fac Was Fac Low Low Zio Dee Pro Fac Low Low Dat Pro Fac Upp Upp Zhi Pro Fac Upp Upp War Pro Res Qua Gar Res Gar Res Gar Acc Gar Acc Com Ac0 Total Allies 80 | . . . . 10 . . 19 7 . 1 . . . 1 . . . 3 . . 5 . 1 . . 2 1 2 . 2 6 6 8 3 . . . . 3 . Largest Group 19 | . . . . 10 10 1 19 14 14 13 12 11 5 2 1 1 . 3 2 . 5 5 1 . . 2 1 2 2 1 6 6 7 3 . . . . 3 . Highest-Rated Group 666 | . . . . 88 88 7 477 376 352 345 316 296 132 40 10 10 . 148 119 . 153 148 47 . . 78 79 112 112 44 84 256 387 239 . . . . 666 . Highest-Rated Ally 222 | . . . . 16 16 7 35 38 31 31 31 31 31 20 10 10 . 94 89 . 31 31 47 . . 48 79 79 64 44 44 64 147 147 . . . . 222 . Total Orders 6 | . . . . . . . . . . . . . . . . . . . . . . . . . . . . . . . . . . . . . . . 6 . STAY 3 | . . . . . . . . . . . . . . . . . . . . . . . . . . . . . . . . . . . . . . . 3 . ROAM 2 | . . . . . . . . . . . . . . . . . . . . . . . . . . . . . . . . . . . . . . . 2 . FOLLOW 1 | . . . . . . . . . . . . . . . . . . . . . . . . . . . . . . . . . . . . . . . 1 . Ally Attacks 600 | . . . . 12 44 . 89 61 16 48 . 54 6 3 . . . 31 7 . 17 24 10 . . . . 1 4 . . 18 37 50 . . . . 68 . Total Damage 20120 | . . . . 122 390 . 3618 1823 264 775 . 1161 86 54 . . . 959 266 . 231 440 169 . . . . . 146 . . 437 883 1737 . . . . 6559 . Kills 113 | . . . . 1 6 . 12 13 2 4 . 10 1 . . . . 9 1 . 2 . 3 . . . . . 3 . . 2 7 8 . . . . 29 . Allies Corrupted 3 | . . . . . . . . . . . . . . . . . . . . . . . . . . . 1 . . . . 1 . 1 . . . . . . Allies Melted . | . . . . . . . . . . . . . . . . . . . . . . . . . . . . . . . . . . . . . . . . . Intel | -11 -10 -10 -9 -9 -8 -7 -7 -7 -7 -7 -7 -7 -6 -6 -6 -6 -6 -5 -5 -5 -5 -5 -4 -4 -4 -4 -4 -3 -3 -3 -3 -2 -2 -2 -2 -1 -1 -1 -1 -1 ------- Run | Scr Mat Min Mat Sto Mat Fac Was Fac Low Low Zio Dee Pro Fac Low Low Dat Pro Fac Upp Upp Zhi Pro Fac Upp Upp War Pro Res Qua Gar Res Gar Res Gar Acc Gar Acc Com Ac0 Robot Analysis Total 15 | . . . . 1 . 2 . 2 . . . . . . . . . . . . . 4 . 2 . . . . 3 1 . . . . . . . . . . Derelict Logs Recovered 18 | . . 1 . . . . . . 1 1 2 . 2 . 2 1 . 1 . 2 1 . 1 . 1 2 . . . . . . . . . . . . . . Drone Launches . | . . . . . . . . . . . . . . . . . . . . . . . . . . . . . . . . . . . . . . . . . Drone Recoveries . | . . . . . . . . . . . . . . . . . . . . . . . . . . . . . . . . . . . . . . . . . Exploration | -11 -10 -10 -9 -9 -8 -7 -7 -7 -7 -7 -7 -7 -6 -6 -6 -6 -6 -5 -5 -5 -5 -5 -4 -4 -4 -4 -4 -3 -3 -3 -3 -2 -2 -2 -2 -1 -1 -1 -1 -1 ------------- Run | Scr Mat Min Mat Sto Mat Fac Was Fac Low Low Zio Dee Pro Fac Low Low Dat Pro Fac Upp Upp Zhi Pro Fac Upp Upp War Pro Res Qua Gar Res Gar Res Gar Acc Gar Acc Com Ac0 Turns Passed 17211 | 19 117 224 199 456 338 239 134 860 346 395 518 406 412 745 289 302 20 377 708 331 358 129 462 943 507 413 706 450 383 292 351 1007 506 357 160 3 338 264 1746 401 Spaces Moved 31174 | 27 126 342 231 571 618 642 185 1721 757 808 676 497 897 1251 706 743 84 743 1674 762 804 189 837 1678 961 886 886 533 663 690 582 1888 793 657 193 12 392 652 3027 790 Core 80 | 25 55 . . . . . . . . . . . . . . . . . . . . . . . . . . . . . . . . . . . . . . . Treads . | . . . . . . . . . . . . . . . . . . . . . . . . . . . . . . . . . . . . . . . . . Legs . | . . . . . . . . . . . . . . . . . . . . . . . . . . . . . . . . . . . . . . . . . Wheels 2 | 2 . . . . . . . . . . . . . . . . . . . . . . . . . . . . . . . . . . . . . . . . Hover 417 | . 71 342 4 . . . . . . . . . . . . . . . . . . . . . . . . . . . . . . . . . . . . . Flight 30675 | . . . 227 571 618 642 185 1721 757 808 676 497 897 1251 706 743 84 743 1674 762 804 189 837 1678 961 886 886 533 663 690 582 1888 793 657 193 12 392 652 3027 790 Fastest Speed 23 | 50 50 56 29 26 26 26 26 26 26 26 26 26 26 26 24 24 24 24 24 24 24 24 24 24 27 27 27 32 32 30 30 30 30 23 23 23 23 23 23 23 Average Speed 26 | 53 53 56 32 28 26 26 26 26 26 26 26 26 26 26 25 24 24 24 24 24 24 24 24 27 27 27 28 32 32 30 30 30 30 25 23 23 23 23 23 23 Slowest Speed 117 | 100 60 56 56 29 29 26 26 26 26 26 26 26 26 26 26 24 24 24 24 24 94 24 24 92 27 27 32 32 32 32 117 117 117 90 23 23 23 23 84 23 Overloaded Moves . | . . . . . . . . . . . . . . . . . . . . . . . . . . . . . . . . . . . . . . . . . Propulsion Burnouts . | . . . . . . . . . . . . . . . . . . . . . . . . . . . . . . . . . . . . . . . . . Robots Hopped 79 | . . . . . . . . 2 . . . . . 5 . . . . 1 . . . . 1 . . 1 . 13 4 . 7 36 4 . . 2 3 . . Cave-ins Triggered 1 | . . . . . . . . . . . . . . . . . . . 1 . . . . . . . . . . . . . . . . . . . . . Teleports 2 | . . . . . . . . . . . . . . . . . . . . . . . . . . . . . . . . . . . . . . . 1 1 Exploration Rate (%) 64 | 3 23 76 20 93 58 31 82 50 96 96 86 71 98 42 85 91 71 92 55 90 93 78 91 45 91 85 78 85 22 80 72 57 75 23 38 1 56 23 79 45 Regions Visited 40 Branch Regions 22 Pre-discovered Areas 16 | . . 1 . . . . . . . 1 3 . . 1 . 1 1 . . 2 . 3 . 1 1 1 . . . . . . . . . . . . . . Known Exits Taken 28 | . . . 1 1 1 . . 1 1 . . . 1 1 1 1 1 1 1 1 1 1 1 1 1 1 1 1 1 1 . 1 . 1 . 1 . 1 1 . Unknown Exits Taken 6 | 1 1 1 . . . . . . . 1 1 1 . . . . . . . . . . . . . . . . . . . . . . . . . . . . Scrap Searched 53 | . . 1 . . . . . . 2 2 3 . 1 . 11 3 . 4 . 5 4 . 5 . 4 5 . 3 . . . . . . . . . . . . Spaces Dug 120 | . . . . . . 1 . 3 1 . . . 2 15 6 . . . 23 . 1 . 3 12 2 . . 1 10 6 2 4 1 2 . . 4 9 12 . Terrain Destroyed 192 | . . . . . 2 1 . 3 1 . . . 2 15 6 . . . 23 . 1 . 3 12 2 . . 1 10 6 2 4 1 2 . . 4 9 82 . Melee 120 | . . . . . . 1 . 3 1 . . . 2 15 6 . . . 23 . 1 . 3 12 2 . . 1 10 6 2 4 1 2 . . 4 9 12 . Projectile . | . . . . . . . . . . . . . . . . . . . . . . . . . . . . . . . . . . . . . . . . . AOE 72 | . . . . . 2 . . . . . . . . . . . . . . . . . . . . . . . . . . . . . . . . . 70 . Terrain Rammed . | . . . . . . . . . . . . . . . . . . . . . . . . . . . . . . . . . . . . . . . . . Walls Destroyed . | . . . . . . . . . . . . . . . . . . . . . . . . . . . . . . . . . . . . . . . . . Machines Disabled . | . . . . . . . . . . . . . . . . . . . . . . . . . . . . . . . . . . . . . . . . . Actions | -11 -10 -10 -9 -9 -8 -7 -7 -7 -7 -7 -7 -7 -6 -6 -6 -6 -6 -5 -5 -5 -5 -5 -4 -4 -4 -4 -4 -3 -3 -3 -3 -2 -2 -2 -2 -1 -1 -1 -1 -1 --------- Run | Scr Mat Min Mat Sto Mat Fac Was Fac Low Low Zio Dee Pro Fac Low Low Dat Pro Fac Upp Upp Zhi Pro Fac Upp Upp War Pro Res Qua Gar Res Gar Res Gar Acc Gar Acc Com Ac0 Total 38305 | 30 149 364 318 756 719 691 274 2070 858 942 1011 748 1023 1556 783 839 83 892 1889 868 935 263 1030 2059 1177 1034 1291 798 798 754 713 2281 985 823 298 12 586 732 3938 935 Wait 4264 | . 4 10 45 88 37 10 73 279 53 43 332 194 64 194 35 69 . 57 85 34 57 34 52 195 156 99 278 227 112 32 48 276 82 103 85 . 99 30 590 3 Move 31008 | 26 125 341 230 570 617 642 184 1716 756 807 675 496 896 1240 705 742 83 742 1671 761 803 188 836 1674 960 885 883 532 640 682 581 1876 745 648 192 12 386 645 3026 789 Hop 46 | . . . . . . . . 2 . . . . . 5 . . . . 1 . . . . 1 . . 1 . 9 3 . 4 11 4 . . 2 3 . . Pick Up 71 | . . 1 . 3 . 1 3 5 . 2 . 4 1 5 3 . . 2 2 . . 1 3 3 . 2 3 1 . 1 . 5 1 1 . . 3 2 8 5 Fast Attach 169 | 3 4 2 6 11 9 6 1 3 . 1 . 6 1 8 3 . . . 11 . 1 8 1 17 . . 10 1 3 7 . 17 . 5 . . . . 14 10 Attach 15 | . . . . . . . . 4 . . . . 1 . . . . . . . . 1 1 . . 1 1 . . . . 1 . . . . 1 . 3 1 Detach 2 | . . . . . . . . . . . . 1 . . . . . . . . . . . . . . . . . . . . . . . . . . . 1 Swap 40 | . . . 2 1 . 3 1 . . . . 1 . 3 . . . . 1 . . 1 7 1 2 . 2 . 2 . . . . . 2 . . . 8 3 Drop 217 | 1 2 . 8 10 6 7 5 7 . 4 . 8 2 11 4 . . 2 12 . 1 9 2 19 . 1 15 2 5 7 . 21 1 5 . . 2 1 21 16 Fire 139 | . 14 5 21 58 36 . . . . . . . . . . . . . . . . . . . . . . . . . . . . . . . . . 5 . Melee 1237 | . . . . . 3 15 . 43 31 34 4 17 35 71 23 17 . 32 61 36 27 7 54 102 32 27 54 16 24 15 46 45 42 22 8 . 54 33 143 64 Ram . | . . . . . . . . . . . . . . . . . . . . . . . . . . . . . . . . . . . . . . . . . Kick . | . . . . . . . . . . . . . . . . . . . . . . . . . . . . . . . . . . . . . . . . . Crush . | . . . . . . . . . . . . . . . . . . . . . . . . . . . . . . . . . . . . . . . . . Escape Stasis 86 | . . . . . . . . . . . . . . . . . . . 8 . . . . 1 . . . . . . . . 52 14 5 . 6 . . . Rewire 110 | . . . . . . . . . . 6 . . . . . . . 22 . . 26 . 4 . . 3 5 2 . . 11 . 31 . . . . . . . Trap 1 | . . . 1 . . . . . . . . . . . . . . . . . . . . . . . . . . . . . . . . . . . . . Miscellaneous 900 | . . 5 5 15 11 7 7 11 18 45 . 21 23 19 10 11 . 35 37 37 20 14 70 46 27 16 39 17 3 7 27 36 20 21 6 . 33 18 120 43 Route ------- -11/Scrapyard -10/Materials -10/Mines (discovered 2 exits: *Mat x2) -9/Materials (discovered 4 exits: Mat x2 / Min / *Sto) -9/Storage -8/Materials (discovered 3 exits: *Fac x3) -7/Factory (discovered 2 exits: *Fac x2) -7/Waste -7/Factory (discovered 2 exits: *Low x2) -7/Lower Caves (discovered 2 exits: *Low / [*Zio]) -7/Lower Caves (discovered 2 exits: *Fac / [*Zio]) -7/Zion (discovered 2 exits: [*Dee] / [*Pro]) -7/Deep Caves -6/Proximity Caves -6/Factory (discovered 3 exits: *Fac / *Low x2) -6/Lower Caves -6/Lower Caves (discovered 2 exits: Fac / *Dat) -6/Data Miner -5/Proximity Caves -5/Factory (discovered 8 exits: *Fac x4 / *Upp x2 / *Ext x2) -5/Upper Caves -5/Upper Caves (discovered 2 exits: *Fac / *Zhi) -5/Zhirov -4/Proximity Caves -4/Factory (discovered 6 exits: *Res x3 / *Upp x2 / Arm) -4/Upper Caves -4/Upper Caves (discovered 2 exits: *Res / *War) -4/Warlord -3/Proximity Caves -3/Research (discovered 2 exits: Res / *Qua) -3/Quarantine (discovered 2 exits: Res / Gar) -3/Garrison (discovered 2 exits: *Res x2) -2/Research (discovered 5 exits: *Acc x3 / [Tes] / Gar) -2/Garrison (discovered 3 exits: *Res x3) -2/Research -2/Garrison -1/Access -1/Garrison (discovered 2 exits: *Acc x2) -1/Access -1/Command (discovered 3 exits: *Sur x2 / *Ac0) -1/Access_0 Near Former Tau Ceti IV History --------- Turn | Location | Event 1 | -11/Scrapyard | Upgraded with Propulsion slot (x1) 1 | -11/Scrapyard | Upgraded with Weapon slot (x1) 11 | -11/Scrapyard | Discovered new exit (range 15) 20 | -11/Scrapyard | Entered Materials 46 | -10/Materials | Discovered new exit (range 8) 137 | -10/Materials | Entered Mines 145 | -10/Mines | Found a hidden stash of uninstalled traps 157 | -10/Mines | Learned location of Storage (-9) 239 | -10/Mines | Discovered new exit (range 11) 315 | -10/Mines | Build established: Mutant 317 | -10/Mines | Learned 4 Materials zone layouts 320 | -10/Mines | Met a Derelict shopkeep closing up shop 353 | -10/Mines | Discovered new exit (range 5) 361 | -10/Mines | Entered Materials 362 | -9/Materials | Identified exit to Materials 362 | -9/Materials | Identified exit to Storage 363 | -9/Materials | Reached level 2 368 | -9/Materials | Upgraded with Propulsion slot (x1) 378 | -9/Materials | Identified exit to Mines 560 | -9/Materials | Entered Storage 562 | -9/Storage | Reached level 3 631 | -9/Storage | Reached level 4 699 | -9/Storage | Upgraded with Weapon slot (x1) 736 | -9/Storage | Upgraded with Utility slot (x1) 758 | -9/Storage | Build established: Hacker-Sprinter 922 | -9/Storage | Discovered exit to Materials (range 16) 936 | -9/Storage | Assisted by bots powering up and referring to "LRC-V3" 940 | -9/Storage | Reached level 5 948 | -9/Storage | Upgraded with Propulsion slot (x1) 977 | -9/Storage | Central database locked down 1016 | -9/Storage | Entered Materials 1016 | -8/Materials | Accompanied by 10 allies 1018 | -8/Materials | Reached level 6 1068 | -8/Materials | Reached level 7 1111 | -8/Materials | Discovered new exit (range 9) 1146 | -8/Materials | Upgraded with Power slot (x1) 1151 | -8/Materials | Upgraded with Utility slot (x1) 1177 | -8/Materials | Reached level 8 1240 | -8/Materials | Discovered new exit (range 3) 1314 | -8/Materials | Identified exit to Factory 1348 | -8/Materials | Garrison activated, responded to threat 1351 | -8/Materials | Upgraded with Utility slot (x1) 1354 | -8/Materials | Entered Factory 1354 | -7/Factory | Accompanied by 1 ally 1356 | -7/Factory | Reached level 9 1408 | -7/Factory | Central database locked down 1446 | -7/Factory | Reached level 10 1500 | -7/Factory | Upgraded with Utility slot (x1) 1516 | -7/Factory | Discovered new exit (range 7) 1573 | -7/Factory | Discovered new exit (range 24) 1593 | -7/Factory | Manually triggered Chute Trap 1593 | -7/Factory | Sucked down chute 1593 | -7/Factory | Entered Waste 1604 | -7/Waste | Spotted C-40 Crusher 1608 | -7/Waste | Warlord forces began an assault 1611 | -7/Waste | Spotted C-40 Crusher 1611 | -7/Waste | Spotted C-40 Crusher 1612 | -7/Waste | Spotted C-40 Crusher 1613 | -7/Waste | Spotted C-40 Crusher 1621 | -7/Waste | Allies destroyed C-40 Crusher 1625 | -7/Waste | Allies destroyed C-40 Crusher 1625 | -7/Waste | Allies destroyed C-40 Crusher 1627 | -7/Waste | Allies destroyed C-40 Crusher 1633 | -7/Waste | Allies destroyed C-40 Crusher 1650 | -7/Waste | Discovered new exit (range 12) 1694 | -7/Waste | Spotted C-40 Crusher 1704 | -7/Waste | Allies destroyed C-40 Crusher 1727 | -7/Waste | Entered Factory 1727 | -7/Factory | Accompanied by 13 allies 1852 | -7/Factory | Reached level 11 1912 | -7/Factory | Reached level 12 1954 | -7/Factory | Identified exit to Lower Caves 1990 | -7/Factory | Upgraded with Utility slot (x1) 2001 | -7/Factory | Reached level 13 2028 | -7/Factory | Hacking Suite fried by hacking feedback 2095 | -7/Factory | Fabricated P-60 Hacker? 2177 | -7/Factory | First assault squad dispatched 2180 | -7/Factory | Upgraded with Weapon slot (x1) 2271 | -7/Factory | Fabricated B-48 Gladiator? 2344 | -7/Factory | Reached level 14 2350 | -7/Factory | Hacker 4b assimilated hostile G-47 Trooper 2356 | -7/Factory | Upgraded with Utility slot (x1) 2555 | -7/Factory | Build established: Commander-Sprinter 2587 | -7/Factory | Entered Lower Caves 2587 | -7/Lower Caves | Accompanied by 14 allies 2588 | -7/Lower Caves | A Derelict revealed a hidden shortcut to a safe place 2669 | -7/Lower Caves | Spotted B-75 Beast 2688 | -7/Lower Caves | Reached level 15 2688 | -7/Lower Caves | Destroyed B-75 Beast 2709 | -7/Lower Caves | Identified exit to Lower Caves 2746 | -7/Lower Caves | Encountered a Warlord checkpoint 2933 | -7/Lower Caves | Entered another Lower Caves area 2933 | -7/Lower Caves | Accompanied by 13 allies 2941 | -7/Lower Caves | Discovered new exit (range 13) 3023 | -7/Lower Caves | Attracted the attention of an 0b10 outpost 3029 | -7/Lower Caves | Reached level 16 3042 | -7/Lower Caves | Core integrity fell below 50% 3064 | -7/Lower Caves | Learned location of Zion (-7) 3205 | -7/Lower Caves | Encountered a Warlord checkpoint 3226 | -7/Lower Caves | Discovered new exit (range 5) 3249 | -7/Lower Caves | Spotted B-75 Beast 3266 | -7/Lower Caves | Destroyed B-75 Beast 3328 | -7/Lower Caves | Entered Zion 3328 | -7/Zion | Accompanied by 12 allies 3344 | -7/Zion | Given the Hacking Drone Bay 3350 | -7/Zion | Discovered new exit (range 14) 3373 | -7/Zion | Learned location of Data Miner (-6) 3382 | -7/Zion | Build established: Commander-Scout 3385 | -7/Zion | Learned Factory emergency access door positions 3425 | -7/Zion | Given A8's code to call for help 3430 | -7/Zion | Learned Factory stockpile data 3434 | -7/Zion | Learned location of Armory (-4) 3483 | -7/Zion | Discovered new exit (range 22) 3512 | -7/Zion | Saw the warning signs outside the Deep Caves entrance 3846 | -7/Zion | Entered Deep Caves 3846 | -7/Deep Caves | Accompanied by 11 allies 3848 | -7/Deep Caves | Reached level 17 3929 | -7/Deep Caves | Attacked by Z-Imprinter 3943 | -7/Deep Caves | Allies destroyed Z-Imprinter 4103 | -7/Deep Caves | Z-Facility disabled 4139 | -7/Deep Caves | Upgraded with Utility slot (x1) 4139 | -7/Deep Caves | Found Prototype Protection 4139 | -7/Deep Caves | Identified Zio. Weapon Casing 4164 | -7/Deep Caves | Build established: Scout 4181 | -7/Deep Caves | Discovered new exit (range 7) 4195 | -7/Deep Caves | Spotted as-26912 4252 | -7/Deep Caves | Entered Proximity Caves 4252 | -6/Proximity Caves | Accompanied by 5 allies 4253 | -6/Proximity Caves | Identified exit to Factory 4396 | -6/Proximity Caves | Attracted the attention of an 0b10 checkpoint 4449 | -6/Proximity Caves | Spotted B-75 Beast 4455 | -6/Proximity Caves | Destroyed B-75 Beast 4463 | -6/Proximity Caves | Learned Factory interactive machine intel 4549 | -6/Proximity Caves | Reached level 18 4623 | -6/Proximity Caves | Upgraded with Utility slot (x1) 4664 | -6/Proximity Caves | Entered Factory 4664 | -6/Factory | Accompanied by 2 allies 4667 | -6/Factory | Loaded intel: 45 interactive machine locations 4741 | -6/Factory | Identified exit to Lower Caves 4767 | -6/Factory | Reached level 19 4895 | -6/Factory | Found Prototype Processor 4895 | -6/Factory | Identified Exp. Signal Interpreter 4897 | -6/Factory | Found Exp. Signal Interpreter 4962 | -6/Factory | Fabricated Imp. Armor Integrity Analyzer (x1) 5060 | -6/Factory | Fabricated Adv. Melee Analysis Suite? 5090 | -6/Factory | Spotted B-75 Beast 5109 | -6/Factory | Discovered new exit (range 8) 5111 | -6/Factory | Identified exit to Factory 5148 | -6/Factory | Fabricated Imp. Actuator Array (x1) 5188 | -6/Factory | Build established: Hacker-Sprinter 5409 | -6/Factory | Entered Lower Caves 5409 | -6/Lower Caves | Accompanied by 1 ally 5459 | -6/Lower Caves | Spotted B-75 Beast 5491 | -6/Lower Caves | Destroyed B-75 Beast 5509 | -6/Lower Caves | Encountered a Warlord checkpoint 5518 | -6/Lower Caves | Learned Factory emergency access door positions 5530 | -6/Lower Caves | Found Alien Artifact 5530 | -6/Lower Caves | Identified Core Expander 5530 | -6/Lower Caves | Installed Core Expander, added new Propulsion slot 5603 | -6/Lower Caves | Reached level 20 5629 | -6/Lower Caves | Discovered new exit (range 9) 5635 | -6/Lower Caves | Identified exit to Lower Caves 5698 | -6/Lower Caves | Entered another Lower Caves area 5698 | -6/Lower Caves | Accompanied by 1 ally 5738 | -6/Lower Caves | Discovered exit to Factory (range 20) 5743 | -6/Lower Caves | Attacked by a delusional Derelict stockpiling parts 5757 | -6/Lower Caves | Attracted the attention of an 0b10 checkpoint 5892 | -6/Lower Caves | Learned location of Extension (-5) 5896 | -6/Lower Caves | Build established: Hacker-Scout 5907 | -6/Lower Caves | Encountered a Warlord checkpoint 5955 | -6/Lower Caves | Discovered new exit (range 11) 5969 | -6/Lower Caves | Identified exit to Data Miner 6000 | -6/Lower Caves | Entered Data Miner 6000 | -6/Data Miner | Discovered new exit (range 6) 6005 | -6/Data Miner | Met Data Miner 6010 | -6/Data Miner | Learned location of Section 7 (-2) 6010 | -6/Data Miner | Acquired the access code to Warlord's prototype stash 6013 | -6/Data Miner | Received God Mode back door access code from Data Miner 6020 | -6/Data Miner | Identified exit to Proximity Caves 6020 | -6/Data Miner | Entered Proximity Caves 6043 | -5/Proximity Caves | Escorted by Enhanced Grunt 6044 | -5/Proximity Caves | Attracted the attention of an 0b10 outpost 6064 | -5/Proximity Caves | Reached level 21 6256 | -5/Proximity Caves | Spotted B-75 Beast 6260 | -5/Proximity Caves | Destroyed B-75 Beast 6291 | -5/Proximity Caves | Learned 8 Factory zone layouts 6306 | -5/Proximity Caves | Attracted the attention of an 0b10 checkpoint 6324 | -5/Proximity Caves | Reached level 22 6348 | -5/Proximity Caves | Destroyed 8 combat bots 6367 | -5/Proximity Caves | Discovered exit to Factory (range 17) 6397 | -5/Proximity Caves | Entered Factory 6397 | -5/Factory | Accompanied by 2 allies 6398 | -5/Factory | Identified exit to Upper Caves 6399 | -5/Factory | Identified exit to Factory 6399 | -5/Factory | Identified exit to Extension 6441 | -5/Factory | Fabricated Kinetic Spear? 6505 | -5/Factory | Garrison activated, responded to threat 6607 | -5/Factory | Fabricated Kinetic Spear? 6663 | -5/Factory | Discovered exit to Factory (range 12) 6804 | -5/Factory | Central database locked down 6863 | -5/Factory | Crushed by falling debris 6885 | -5/Factory | Reached level 23 6892 | -5/Factory | Discovered exit to Factory (range 14) 6993 | -5/Factory | Discovered exit to Extension (range 12) 7072 | -5/Factory | Fabricated Force Booster (x2) 7105 | -5/Factory | Entered Upper Caves 7107 | -5/Upper Caves | Learned Factory garrison access intel 7181 | -5/Upper Caves | Spotted B-75 Beast 7193 | -5/Upper Caves | Destroyed B-75 Beast 7225 | -5/Upper Caves | Attracted the attention of an 0b10 base 7269 | -5/Upper Caves | Learned Extension stockpile data 7269 | -5/Upper Caves | Learned Research emergency access door positions 7269 | -5/Upper Caves | Learned Armory trap positions 7269 | -5/Upper Caves | Learned location of 1 exit from Research 7269 | -5/Upper Caves | Central database locked down 7288 | -5/Upper Caves | Attracted the attention of an 0b10 checkpoint 7383 | -5/Upper Caves | Discovered new exit (range 5) 7386 | -5/Upper Caves | Learned 4 Factory zone layouts 7436 | -5/Upper Caves | Identified exit to Upper Caves 7436 | -5/Upper Caves | Entered another Upper Caves area 7438 | -5/Upper Caves | Discovered exit to Factory (range 10) 7478 | -5/Upper Caves | Attacked by a delusional Derelict stockpiling Unaware 7604 | -5/Upper Caves | Attracted the attention of an 0b10 outpost 7711 | -5/Upper Caves | Spotted B-75 Beast 7725 | -5/Upper Caves | Discovered new exit (range 7) 7733 | -5/Upper Caves | Identified exit to Zhirov 7734 | -5/Upper Caves | Destroyed B-75 Beast 7794 | -5/Upper Caves | Entered Zhirov 7794 | -5/Zhirov | Accompanied by 5 allies 7794 | -5/Zhirov | Discovered new exit (range 3) 7799 | -5/Zhirov | Met Zhirov 7799 | -5/Zhirov | Reached level 24 7804 | -5/Zhirov | Learned location of Quarantine (-3) 7804 | -5/Zhirov | Learned location of Testing (-2) 7804 | -5/Zhirov | Learned location of Command (-1) 7806 | -5/Zhirov | Zhirov requested help retrieving the SGEMP Prototype 7810 | -5/Zhirov | Found Alien Artifact 7810 | -5/Zhirov | Identified Integrated Dissipator 7810 | -5/Zhirov | Installed Integrated Dissipator, increased core heat dissipation (+20) 7867 | -5/Zhirov | Attacked by Zhirov 7871 | -5/Zhirov | Cloak Generator disabled 7878 | -5/Zhirov | Destroyed Perun 7886 | -5/Zhirov | Destroyed Zhirov 7889 | -5/Zhirov | Found Prototype Hackware 7889 | -5/Zhirov | Identified Deep Network Scanner 7892 | -5/Zhirov | Found Prototype Hackware 7892 | -5/Zhirov | Identified Quantum Router 7894 | -5/Zhirov | Found Prototype Processor 7894 | -5/Zhirov | Identified Exp. Terrain Scan Processor 7895 | -5/Zhirov | Zhirov detonated his lab 7896 | -5/Zhirov | Core integrity fell below 50% 7900 | -5/Zhirov | Found Adv. Powered Armor 7923 | -5/Zhirov | Identified exit to Proximity Caves 7923 | -5/Zhirov | Entered Proximity Caves 7951 | -4/Proximity Caves | Attracted the attention of an 0b10 outpost 8218 | -4/Proximity Caves | Reached level 25 8220 | -4/Proximity Caves | Build established: Wizard-Scout 8253 | -4/Proximity Caves | Destroyed 7 combat bots 8314 | -4/Proximity Caves | Upgraded with Utility slot (x1) 8362 | -4/Proximity Caves | Discovered exit to Factory (range 22) 8369 | -4/Proximity Caves | Spotted B-86 Titan 8377 | -4/Proximity Caves | Destroyed B-86 Titan 8382 | -4/Proximity Caves | Learned location of 1 exit from Research 8385 | -4/Proximity Caves | Entered Factory 8386 | -4/Factory | Identified exit to Research 8388 | -4/Factory | Loaded intel: 4 garrison access locations 8424 | -4/Factory | Discovered new exit (range 11) 8481 | -4/Factory | Discovered exit to Research (range 3) 8483 | -4/Factory | Discovered new exit (range 12) 8552 | -4/Factory | Identified exit to Upper Caves 8552 | -4/Factory | Identified exit to Armory 8577 | -4/Factory | Found Prototype Slashing Weapon 8577 | -4/Factory | Identified Vibroblade 8580 | -4/Factory | Found Vibroblade 8582 | -4/Factory | Found Vibroblade 8584 | -4/Factory | Found Vibroblade 8587 | -4/Factory | Local fabrication network quarantined 8627 | -4/Factory | Fabricated Impulse Thruster Array (x1) 8635 | -4/Factory | First assault squad dispatched 8648 | -4/Factory | Reached level 26 8659 | -4/Factory | Incoming assault squad redirected 8885 | -4/Factory | Garrison activated, responded to threat 8971 | -4/Factory | Destroyed 10 combat bots 9035 | -4/Factory | Spotted B-86 Titan 9059 | -4/Factory | Destroyed B-86 Titan 9126 | -4/Factory | Discovered exit to Research (range 7) 9288 | -4/Factory | High security lockdown imminent 9328 | -4/Factory | Entered Upper Caves 9329 | -4/Upper Caves | Encountered a Warlord checkpoint 9362 | -4/Upper Caves | Spotted B-86 Titan 9440 | -4/Upper Caves | Destroyed B-86 Titan 9470 | -4/Upper Caves | Learned Research trap positions 9486 | -4/Upper Caves | Acquired the password to a Derelict Tinkerer's latest research 9588 | -4/Upper Caves | Reached level 27 9661 | -4/Upper Caves | Caught by Unaware searching for contraband prototypes 9661 | -4/Upper Caves | Caught by Unaware searching for contraband prototypes 9694 | -4/Upper Caves | Destroyed 8 combat bots 9745 | -4/Upper Caves | Learned Extension terminal intel 9745 | -4/Upper Caves | Learned Armory stockpile data 9745 | -4/Upper Caves | Learned Research emergency access door positions 9745 | -4/Upper Caves | Learned Armory trap positions 9745 | -4/Upper Caves | Central database locked down 9795 | -4/Upper Caves | Discovered new exit (range 10) 9801 | -4/Upper Caves | Identified exit to Upper Caves 9818 | -4/Upper Caves | Attracted the attention of an 0b10 checkpoint 9835 | -4/Upper Caves | Entered another Upper Caves area 9836 | -4/Upper Caves | Identified exit to Warlord 9852 | -4/Upper Caves | Discovered exit to Research (range 7) 9852 | -4/Upper Caves | Attracted the attention of an 0b10 checkpoint 9857 | -4/Upper Caves | Upgraded with Utility slot (x1) 10004 | -4/Upper Caves | Learned Research security intel 10013 | -4/Upper Caves | Encountered a Warlord checkpoint 10019 | -4/Upper Caves | Spotted B-86 Titan 10025 | -4/Upper Caves | Destroyed B-86 Titan 10059 | -4/Upper Caves | Attracted the attention of an 0b10 outpost 10117 | -4/Upper Caves | Destroyed 9 combat bots 10248 | -4/Upper Caves | Entered Warlord 10248 | -4/Warlord | Accompanied by 1 ally 10257 | -4/Warlord | System corruption cleaned by Quarantine Array 10309 | -4/Warlord | Learned 4 Testing zone layouts 10310 | -4/Warlord | Learned Armory trap positions 10367 | -4/Warlord | Met Warlord 10370 | -4/Warlord | Opened Warlord's prototype stash 10376 | -4/Warlord | Found Prototype Processor 10376 | -4/Warlord | Identified Exp. Armor Integrity Analyzer 10378 | -4/Warlord | Found Prototype Device 10378 | -4/Warlord | Identified System Purifier 10383 | -4/Warlord | Found Prototype Device 10383 | -4/Warlord | Identified Exp. Phase Shifter 10392 | -4/Warlord | Warlord's base attacked by MAIN.C 10392 | -4/Warlord | Found Prototype Reactor 10392 | -4/Warlord | Identified Vortex Chain Reactor 10640 | -4/Warlord | Warlord forces counterattacked 10701 | -4/Warlord | Destroyed 8 combat bots 10711 | -4/Warlord | Spotted Striker 10722 | -4/Warlord | Destroyed Striker 10755 | -4/Warlord | Discovered new exit (range 24) 10766 | -4/Warlord | Destroyed 12 combat bots 10793 | -4/Warlord | Spotted Striker 10793 | -4/Warlord | Spotted Striker 10793 | -4/Warlord | Spotted Striker 10809 | -4/Warlord | Destroyed Striker 10843 | -4/Warlord | Reached level 28 10864 | -4/Warlord | Destroyed 8 combat bots 10892 | -4/Warlord | Spotted Striker 10892 | -4/Warlord | Spotted Striker 10898 | -4/Warlord | Destroyed Striker 10925 | -4/Warlord | Rewired Striker 10952 | -4/Warlord | Identified exit to Proximity Caves 10954 | -4/Warlord | Entered Proximity Caves 10954 | -3/Proximity Caves | Accompanied by 1 ally 11127 | -3/Proximity Caves | Received a Behemoth hack from an annoying Tinkerer 11161 | -3/Proximity Caves | Spotted B-86 Titan 11165 | -3/Proximity Caves | Destroyed B-86 Titan 11233 | -3/Proximity Caves | Discovered exit to Research (range 10) 11287 | -3/Proximity Caves | Attracted the attention of an 0b10 outpost 11344 | -3/Proximity Caves | Destroyed 9 combat bots 11404 | -3/Proximity Caves | Entered Research 11404 | -3/Research | Accompanied by 2 allies 11405 | -3/Research | Identified exit to Research 11405 | -3/Research | Identified exit to Quarantine 11406 | -3/Research | Loaded intel: 64 trap records 11406 | -3/Research | Reached level 29 11528 | -3/Research | Fabricated Exp. Terrain Scanner (x1) 11646 | -3/Research | Fabricated Adv. Force Booster (x2) 11787 | -3/Research | Entered Quarantine 11791 | -3/Quarantine | Found Alien Artifact 11822 | -3/Quarantine | Found Alien Energy Cannon 11822 | -3/Quarantine | Identified Core Cannon 11842 | -3/Quarantine | Found Enh. Force Lance 11862 | -3/Quarantine | Identified exit to Garrison 11869 | -3/Quarantine | Discovered exit to Research (range 24) 12071 | -3/Quarantine | Incoming investigation squad redirected 12079 | -3/Quarantine | Entered Garrison 12079 | -3/Garrison | Accompanied by 1 ally 12094 | -3/Garrison | Triggered checkpoint 12102 | -3/Garrison | P-80 Master assimilated allied Director 8a 12124 | -3/Garrison | Triggered checkpoint 12138 | -3/Garrison | Garrison Relay disabled 12149 | -3/Garrison | Spotted B-86 Titan 12203 | -3/Garrison | Destroyed B-86 Titan 12230 | -3/Garrison | Reached level 30 12285 | -3/Garrison | Discovered exit to Research (range 17) 12292 | -3/Garrison | Installed Relay Interface Framework 12326 | -3/Garrison | Triggered checkpoint 12349 | -3/Garrison | Garrison Relay disabled 12383 | -3/Garrison | Discovered exit to Research (range 3) 12430 | -3/Garrison | Entered Research 12430 | -2/Research | Accompanied by 6 allies 12430 | -2/Research | Warlord forces began assault on 0b10 12454 | -2/Research | Spotted B-90 Cyclops 12469 | -2/Research | Discovered new exit (range 29) 12476 | -2/Research | Reached level 31 12476 | -2/Research | Destroyed B-90 Cyclops 12532 | -2/Research | Discovered new exit (range 29) 12540 | -2/Research | Research machine network offline 12545 | -2/Research | Fabricated Y-72 Warden (x2) 12546 | -2/Research | Identified exit to Access 12547 | -2/Research | Spotted B-90 Cyclops 12555 | -2/Research | Destroyed B-90 Cyclops 12560 | -2/Research | Fabricated Y-72 Warden? 12562 | -2/Research | Borebot progress halted 12580 | -2/Research | Found Prototype Slashing Weapon 12580 | -2/Research | Identified Nanosword 12588 | -2/Research | Spotted B-90 Cyclops 12595 | -2/Research | Found Prototype Device 12595 | -2/Research | Identified Exp. Force Field 12655 | -2/Research | Destroyed B-90 Cyclops 12697 | -2/Research | Identified exit to Garrison 12769 | -2/Research | Met up with Warlord 12778 | -2/Research | Found Prototype Device 12778 | -2/Research | Identified Exp. Shock Absorption System 12784 | -2/Research | Upgraded with Utility slot (x1) 12823 | -2/Research | Discovered exit to Access (range 25) 12860 | -2/Research | Borebot progress halted 12920 | -2/Research | Spotted Executioner 12924 | -2/Research | Borebot progress halted 12948 | -2/Research | Spotted Executioner 12956 | -2/Research | Found Prototype Device 12956 | -2/Research | Identified Adv. Kinecellerator 13036 | -2/Research | P-80 Master assimilated allied ZK-SBN(s) 13070 | -2/Research | Identified exit to Garrison 13084 | -2/Research | Spotted Striker 13112 | -2/Research | Spotted Executioner 13116 | -2/Research | Destroyed Executioner 13126 | -2/Research | Local fabrication network quarantined 13299 | -2/Research | Discovered exit to Access (range 17) 13359 | -2/Research | Spotted Executioner 13430 | -2/Research | Warlord invited to help at Command 13430 | -2/Research | Reached level 32 13437 | -2/Research | Entered Garrison 13471 | -2/Garrison | Spotted B-90 Cyclops 13476 | -2/Garrison | Triggered checkpoint 13506 | -2/Garrison | Rewired B-90 Cyclops 13511 | -2/Garrison | Destroyed 7 combat bots 13512 | -2/Garrison | Triggered checkpoint 13516 | -2/Garrison | Discovered new exit (range 29) 13522 | -2/Garrison | Triggered checkpoint 13528 | -2/Garrison | Discovered new exit (range 17) 13530 | -2/Garrison | Triggered checkpoint 13568 | -2/Garrison | Triggered checkpoint 13599 | -2/Garrison | Discovered new exit (range 23) 13619 | -2/Garrison | Identified exit to Research 13621 | -2/Garrison | Expanded RIF knowledge: Coupler Efficiency 13663 | -2/Garrison | Garrison Relay disabled 13768 | -2/Garrison | Garrison Relay disabled 13778 | -2/Garrison | Triggered checkpoint 13834 | -2/Garrison | Garrison Relay disabled 13943 | -2/Garrison | Entered Research 13943 | -2/Research | Accompanied by 3 allies 14098 | -2/Research | Reached level 33 14115 | -2/Research | Identified exit to Garrison 14150 | -2/Research | Garrison activated, responded to threat 14190 | -2/Research | Spotted B-90 Cyclops 14193 | -2/Research | First assault squad dispatched 14211 | -2/Research | Incoming assault squad redirected 14300 | -2/Research | Identified exit to Garrison 14300 | -2/Research | Entered Garrison 14359 | -2/Garrison | Spotted B-90 Cyclops 14416 | -2/Garrison | Destroyed B-90 Cyclops 14450 | -2/Garrison | Discovered exit to Access (range 24) 14459 | -2/Garrison | Expanded RIF knowledge: Coupler Efficiency 14460 | -2/Garrison | Entered Access 14463 | -1/Access | Identified exit to Garrison 14463 | -1/Access | Entered Garrison 14465 | -1/Garrison | Reached level 34 14485 | -1/Garrison | Upgraded with Utility slot (x1) 14507 | -1/Garrison | Spotted B-99 Colossus 14609 | -1/Garrison | Destroyed 8 combat bots 14612 | -1/Garrison | Triggered checkpoint 14613 | -1/Garrison | Discovered new exit (range 11) 14615 | -1/Garrison | Identified exit to Access 14716 | -1/Garrison | Triggered checkpoint 14762 | -1/Garrison | Discovered exit to Access (range 14) 14762 | -1/Garrison | Destroyed 10 combat bots 14769 | -1/Garrison | Expanded RIF knowledge: Alert ID Control 14779 | -1/Garrison | Triggered checkpoint 14801 | -1/Garrison | Entered Access 14839 | -1/Access | Reached level 35 15012 | -1/Access | Discovered new exit (range 27) 15065 | -1/Access | Identified exit to Command 15065 | -1/Access | Entered Command 15074 | -1/Command | Disengaged cave seal 15074 | -1/Command | Derelicts emerged from the dark tunnel 15074 | -1/Command | Welcomed Warlord to Command 15120 | -1/Command | Reached level 36 15146 | -1/Command | Destroyed 9 combat bots 15195 | -1/Command | Spotted M Guard 15195 | -1/Command | Spotted M Guard 15195 | -1/Command | Spotted Combat Programmer 15195 | -1/Command | Spotted Combat Programmer 15213 | -1/Command | Combat Programmer assimilated allied 1M-LEA(i) 15213 | -1/Command | Destroyed Combat Programmer 15221 | -1/Command | Warlord commented on Warlord statues 15240 | -1/Command | Destroyed M Guard 15240 | -1/Command | Destroyed Combat Programmer 15242 | -1/Command | Destroyed M Guard 15242 | -1/Command | All MAIN.C guards destroyed 15248 | -1/Command | Found Prototype Device 15248 | -1/Command | Identified AEGIS Remote Shield 15250 | -1/Command | Found Prototype Device 15250 | -1/Command | Identified Thermal Barrier 15282 | -1/Command | Spotted B-99 Colossus 15286 | -1/Command | Assimilated Colossus 10a with formatsys_high 15296 | -1/Command | Spotted Alpha 7 15296 | -1/Command | Spotted Alpha 7 15296 | -1/Command | Spotted Striker 15296 | -1/Command | Spotted Striker 15296 | -1/Command | Spotted Executioner 15296 | -1/Command | Spotted Executioner 15296 | -1/Command | Spotted Executioner 15296 | -1/Command | Spotted Executioner 15301 | -1/Command | Spotted B-99 Colossus 15304 | -1/Command | Destroyed Striker 15306 | -1/Command | Spotted B-99 Colossus 15307 | -1/Command | Destroyed Executioner 15310 | -1/Command | Assimilated Colossus 10b with formatsys_high 15312 | -1/Command | Assimilated Colossus 10c with formatsys_high 15315 | -1/Command | Destroyed Alpha 7 15319 | -1/Command | Allies destroyed Executioner 15320 | -1/Command | Destroyed Alpha 7 15323 | -1/Command | Found Prototype Processor 15323 | -1/Command | Identified Exp. Target Analyzer 15324 | -1/Command | Allies destroyed Executioner 15328 | -1/Command | Allies destroyed Executioner 15333 | -1/Command | Discovered new exit (range 16) 15359 | -1/Command | Warlord destroyed during the assault 15518 | -1/Command | Met MAIN.C 15530 | -1/Command | 0b10 Conduit disabled 15542 | -1/Command | Reached level 37 15542 | -1/Command | Allies destroyed MAIN.C Shell 15543 | -1/Command | MAIN.C activated Command garrisons 15556 | -1/Command | Allies destroyed MAIN.C 15623 | -1/Command | Spotted B-99 Colossus 15627 | -1/Command | Destroyed B-99 Colossus 15714 | -1/Command | System corruption reached 10% 15813 | -1/Command | Destroyed 34 combat bots 15972 | -1/Command | Discovered new exit (range 17) 16559 | -1/Command | Phase Generator disabled 16797 | -1/Command | Build established: Hacker-Scout 16806 | -1/Command | Identified Transdimensional Reconstructor 16806 | -1/Command | Warped through subspace to slip node 16806 | -1/Command | Discovered new exit (range 5) 16809 | -1/Command | Identified exit to Access_0 16811 | -1/Command | Entered Access_0 16812 | -1/Access_0 | Met Architect 16813 | -1/Access_0 | Reached level 38 16819 | -1/Access_0 | Destroyed A8 16826 | -1/Access_0 | Architect warped through subspace 16849 | -1/Access_0 | Found Nanosword 16851 | -1/Access_0 | Found Nanosword 16880 | -1/Access_0 | Architect warped through subspace 16898 | -1/Access_0 | Found Prototype Device 16898 | -1/Access_0 | Identified Exp. Weapon Cycler 16900 | -1/Access_0 | A6 warped into view 16913 | -1/Access_0 | Destroyed A6 16916 | -1/Access_0 | Found Enh. Force Lance 16926 | -1/Access_0 | Architect warped through subspace 16931 | -1/Access_0 | Found Prototype Device 16931 | -1/Access_0 | Identified Desublimator 16941 | -1/Access_0 | Subspace Access Node disabled 16968 | -1/Access_0 | Architect warped through subspace 17019 | -1/Access_0 | Architect warped through subspace 17024 | -1/Access_0 | Subspace Access Node disabled 17050 | -1/Access_0 | Architect warped through subspace 17064 | -1/Access_0 | A5 warped into view 17068 | -1/Access_0 | Destroyed A5 17076 | -1/Access_0 | Architect warped through subspace 17078 | -1/Access_0 | Found Prototype Reactor 17078 | -1/Access_0 | Identified Zero-point Reactor 17095 | -1/Access_0 | Architect warped through subspace 17123 | -1/Access_0 | Architect warped through subspace 17137 | -1/Access_0 | Architect warped through subspace 17153 | -1/Access_0 | Subspace Access Node disabled 17173 | -1/Access_0 | Architect warped through subspace 17185 | -1/Access_0 | Architect warped through subspace 17189 | -1/Access_0 | A4 warped into view 17193 | -1/Access_0 | Subspace Access Node disabled 17206 | -1/Access_0 | Destroyed Architect 17207 | -1/Access_0 | Architect triggered a singularity event 17208 | -1/Access_0 | Found Alien Artifact 17209 | -1/Access_0 | Extracted unknown sensor trigger ID from Architect's data core 17210 | -1/Access_0 | Identified Hpw. Transdimensional Reconstructor 17210 | -1/Access_0 | Warped through subspace to slip node 17210 | -1/Access_0 | Discovered new exit (range 8) 17212 | -1/Access_0 | Identified exit to Surface 17212 | *** | Escaped singularity! Last Messages --------------- 17204_ Slug penetrates Wall. 17204_ Penetrated by Quantum Shear. 17204_ Critical hit. 17204_ Exp. Phase Shifter destroyed. 17204_ Penetrated by Quantum Shear. 17206_ Nanosword follow-up attack on Architect. 17206_ Architect: "If I can't win, no one wins!" 17206_ Architect destroyed. 17207_ A0_COM: Initiating irreversible singularity event. Goodbye. 17208_ A0_COM: 10. 17208_ Acquired Alien Artifact. 17209_ A0_COM: 9. 17209_ Acquired data core, extracted unknown sensor trigger ID. 17210_ A0_COM: 8. 17210_ Identified Hpw. Transdimensional Reconstructor. 17210_ Warped through subspace, drawn to slip node. 17210_ EXIT=FOUND 17211_ A0_COM: 7. 17212_ A0_COM: 6. 17212_ EXIT=IDENTIFIED: SURFACE Map ----- +----------------------------------------------------+ | | | | | | | | | | | | | | | | | | | | | | | | | | | | | | | | | ???#???????????????#?#???#???##?????????#????????? | | ????????#????????????#????????????#?????????#????? | | ?#??#??????????????#??????#??????#?#?????????#???? | | ????????????#????????????????????????????????????? | | ????????#????????????????????????#??????????#????? | | ??????????????????????????#??#??????????????#????? | | ????????????#??????????####?????????????????????#? | | ??????????#????????????## ###?###??????????????#?? | | ?????????????#???????#?# #?????????????????????? | | ???????????????????????# @ #?????????????????????? | | ?#??????#?????????????## #?????????????????????? | | ???????????????#??????# #?????????????????#??## | | ??????????????##??????# ##?????????????????#???? | | ??#???????#???#???#???## #?????????????????????? | | ??????#???#????????#??# #?#???????????????????? | | ?????????????????###??# ##??#???????????#??????? | | ??????#?????????#?????# < #???????????????#?????? | | ??????????????????????# ##?????????????????????? | | ??????##??????????????## #???????????????#??????? | | ?#???????????#?????????####??????????????????????? | | ?????????#????????????????????#?????????????#????? | | ??#???????#???#??????????????????????????????????? | | ?#??????#????#???????????????????????????????????? | | ?????????????????????????????????????###?????????? | | #???????????#?????????????????#??????????????????? | | ??????????#?#???????????#??????????????????#?????? | | ???????????????????????????????????#???????????#?# | | ????????#?#??????#???????????????????????????????? | | ????????????????????#???????????????????#??#????#? | | ?#???????????????????????????????????????????????? | | ???????????#???????????#????#??#????????#????????? | | ?????????#??#??????????????#?????????????????????? | | ????????????#??#???????????????????##????????#???? | | ?????????????????????????????????????????????#???? | +----------------------------------------------------+ Best States ------------- Heat Dissipation 87 Energy Generation 80 Energy Capacity 1700 Matter Stores 300 Matter Capacity 700 Sight Range 23 Robot Scan Range 22 Terrain Scan Range 30 Terrain Scan Density 310 Jamming Range 8 Armor Coverage 550 Resistance: KI 20 Resistance: TH 20 Resistance: EX 75 Weapon Shielding 100 Melee Speed Boost 30 Phase Shifting 20 Evasion (%) 99 Melee Accuracy 8 Target Analysis 12 Core Analysis 10 Armor Integrity Analysis 90 Force Boost 5 Overload Regulation 80 Stasis Canceling 2 Offensive Hacking 49 Defensive Hacking 35 Relay Coupler Types 27 Relay Coupler Value 1 Item Schematics ----------------- Imp. Armor Integrity Analyzer | -7/Factory | Hacked Imp. Transmission Jammer | -7/Factory | Hacked Powered Armor | -7/Factory | Hacked Force Booster | -6/Proximity Caves | Hacked Adv. Melee Analysis Suite | -6/Factory | Hacked Imp. Actuator Array | -6/Factory | Hacked Combat Drone Bay | -6/Data Miner | Free Lgt. Regenerative Plating | -6/Data Miner | Free Exp. Flexi-carbon Leg | -6/Data Miner | Free Cmb. Gravmag System | -6/Data Miner | Free Exp. Sensor Array | -6/Data Miner | Free Exp. ECM Suite | -6/Data Miner | Free Kinetic Spear | -6/Data Miner | Free Adv. Hacking Suite | -5/Factory | Hacked Q-thruster | -5/Factory | Hacked Imp. Arc Thrower | -5/Zhirov | Free Exp. Optical Array | -5/Zhirov | Free Exp. Heat Sink | -5/Zhirov | Free Assault Drone Bay | -5/Zhirov | Free Nanoactuators | -4/Factory | Hacked Impulse Thruster Array | -4/Factory | Hacked Adv. Force Booster | -4/Factory | Hacked Adv. Core Analyzer | -4/Factory | Hacked Exp. Terrain Scanner | -4/Factory | Hacked Exp. Thermal Shield | -4/Factory | Hacked HERF Cannon | -4/Factory | Extracted Cld. Nuclear Pulse Thruster | -4/Upper Caves | Hacked Exp. Cesium-ion Thruster | -3/Research | Hacked Robot Schematics ------------------ I-36 Angel | -6/Data Miner | Free X-72 Disruptor | -6/Data Miner | Free G-50 Soldier | -6/Data Miner | Free S-27 Virus | -6/Data Miner | Free Y-72 Warden | -3/Quarantine | Hacked Fabricated ------------ P-60 Hacker | x2 | -7/Factory | Preloaded B-48 Gladiator | x3 | -7/Factory | Preloaded Imp. Armor Integrity Analyzer | x1 | -6/Factory Adv. Melee Analysis Suite | x1 | -6/Factory Imp. Actuator Array | x1 | -6/Factory Kinetic Spear | x1 | -5/Factory Kinetic Spear | x1 | -5/Factory Force Booster | x2 | -5/Factory Impulse Thruster Array | x1 | -4/Factory Exp. Terrain Scanner | x1 | -3/Research Adv. Force Booster | x2 | -3/Research Y-72 Warden | x2 | -2/Research Y-72 Warden | x2 | -2/Research Alien Tech Used ----------------- Core Expander Integrated Dissipator Core Cannon Transdimensional Reconstructor High-powered Transdimensional Reconstructor Achievements -------------- Exposed Wheee! Challenges ------------ None RPGLIKE | -11 -10 -10 -9 -9 -8 -7 -7 -7 -7 -7 -7 -7 -6 -6 -6 -6 -6 -5 -5 -5 -5 -5 -4 -4 -4 -4 -4 -3 -3 -3 -3 -2 -2 -2 -2 -1 -1 -1 -1 -1 --------- Run | Scr Mat Min Mat Sto Mat Fac Was Fac Low Low Zio Dee Pro Fac Low Low Dat Pro Fac Upp Upp Zhi Pro Fac Upp Upp War Pro Res Qua Gar Res Gar Res Gar Acc Gar Acc Com Ac0 Levels Raised 37 | . . . 1 3 3 2 . 4 1 1 . 1 1 1 1 . . 2 1 . . 1 1 1 1 . 1 . 1 . 1 2 . 1 . . 1 1 2 1 XP Earned 59695 | 3000 250 500 2105 3822 5114 1931 290 6140 1992 1431 220 466 1594 2294 392 417 152 2820 1206 493 719 152 1927 2292 494 434 936 884 1041 541 635 2967 1037 467 124 979 1603 494 4053 1287 XP Spent 57795 | 2980 . . 1350 3500 4780 3270 . 6540 . . . 2300 3530 1675 1400 . . 2290 1000 . . . 3160 . . 3200 1920 . . 1250 . 3500 . . . . 4680 1500 2670 1300 Upgrades 105 | 16 . . 5 5 11 6 . 8 . . . 1 4 4 7 . . 7 1 . . . 3 . . 1 10 . . 1 . 1 . . . . 5 1 7 1 Power Slot 1 | . . . . . 1 . . . . . . . . . . . . . . . . . . . . . . . . . . . . . . . . . . . Propulsion Slot 3 | 1 . . 1 1 . . . . . . . . . . . . . . . . . . . . . . . . . . . . . . . . . . . . Utility Slot 12 | . . . . 1 2 1 . 2 . . . 1 1 . . . . . . . . . 1 . . 1 . . . . . 1 . . . . 1 . . . Weapon Slot 3 | 1 . . . 1 . . . 1 . . . . . . . . . . . . . . . . . . . . . . . . . . . . . . . . Core Integrity 28 | 4 . . . . 2 . . . . . . . 2 . . . . 2 . . . . 2 . . . 6 . . . . . . . . . 4 . 6 . Heat Dissipation 7 | 2 . . . . 1 . . 3 . . . . . . . . . 1 . . . . . . . . . . . . . . . . . . . . . . Energy Generation 5 | 1 . . . . 1 . . . . . . . . . . . . 1 . . . . . . . . . . . . . . . . . . . . 1 1 Mass Support 3 | 1 . . . 1 . . . . . . . . . 1 . . . . . . . . . . . . . . . . . . . . . . . . . . Inventory Capacity 6 | 1 . . . 1 . 1 . . . . . . . . . . . . 1 . . . . . . . . . . 1 . . . . . . . 1 . . Sight Range 2 | . . . 1 . . . . . . . . . . . . . . 1 . . . . . . . . . . . . . . . . . . . . . . Sensor Range 11 | 1 . . . . . . . . . . . . . 2 7 . . 1 . . . . . . . . . . . . . . . . . . . . . . Terrain Scan Density 3 | . . . 1 . . 2 . . . . . . . . . . . . . . . . . . . . . . . . . . . . . . . . . . Melee Accuracy 5 | . . . . . 2 2 . 1 . . . . . . . . . . . . . . . . . . . . . . . . . . . . . . . . Hack Attack % 2 | . . . 1 . . . . . . . . . . 1 . . . . . . . . . . . . . . . . . . . . . . . . . . Hack Defense % 2 | . . . 1 . . . . . . . . . . . . . . 1 . . . . . . . . . . . . . . . . . . . . . . KI Resistance % 4 | 2 . . . . 1 . . 1 . . . . . . . . . . . . . . . . . . . . . . . . . . . . . . . . TH Resistance % 4 | 2 . . . . 1 . . . . . . . 1 . . . . . . . . . . . . . . . . . . . . . . . . . . . EX Resistance % 4 | . . . . . . . . . . . . . . . . . . . . . . . . . . . 4 . . . . . . . . . . . . . Protomatter Created 8566 | . . . . 186 191 52 . 301 169 157 . 100 158 461 137 130 . 314 259 310 203 . 642 529 244 306 580 355 58 41 190 384 201 155 78 . 414 221 903 137 Integrity Restored 17765 | . . 111 120 314 146 150 141 163 371 918 . 401 467 341 181 210 . 677 732 746 371 294 1429 939 533 260 791 353 46 118 489 676 306 432 70 . 620 294 2568 987 Core 13813 | . . 111 120 238 130 118 80 131 312 727 . 264 336 289 147 207 . 524 566 616 291 294 876 744 439 219 639 240 29 87 373 471 237 330 41 . 449 214 1937 987 Parts 3952 | . . . . 76 16 32 61 32 59 191 . 137 131 52 34 3 . 153 166 130 80 . 553 195 94 41 152 113 17 31 116 205 69 102 29 . 171 80 631 . Protomatter Decayed 14107 | . . . . 25 261 . 29 330 40 120 . 83 102 320 60 60 . 173 179 53 140 . 143 109 62 144 1285 148 145 . 20 3022 496 321 52 . 64 49 6072 . Game ------ Seed GammaAntigravCapacitor Manual? 0 Play Time 05:57:01 Cumulative 580.5 hours Start 2021.07.10 @ 14:51:48 End 2021.07.11 @ 06:38:31 Sessions 5 Manual Loads 0 Difficulty Rogue Special Mode Winter2019/RPGLIKE Game No. 200 Rogue 200 Adventurer 0 Explorer 0 Win Type 6 Total 43 Types 25/2/7/4/2/0/2/0/1 Lore% 91 Gallery% 94 Achievement% 85 Wizard Run 0 Options --------- ASCII 0 Keyboard 0 Movement Mouse Keybinds 0 Fullscreen 2 Font 12/Smallcaps Map View 83x54 Tactical HUD 1 Map Filters NONE Filters NONE Steam X RUN: 3a98bf28-ae68-4c41-a3f7-43d41879772d